{"text_format":"1","workbook":"xlsx","n_sheets":5,"sheets":["Deployment information","Predefined lists","Deployment file Ids ","NKE version VS decoder versions","Decoder versions information"],"not_rendered":{"charts":0,"images":0,"macros":1,"external_links":0,"defined_names":19,"comments":1,"pivot_tables":0},"unopened":[],"bounds":{"document_bytes":16777216,"sheet_cells":100000,"rows_first":2000,"rows_last":500,"rows_between":2000,"halvings":0,"cell_chars":16384,"cell_head_chars":4096},"cells_cut":0,"cells_raw":0,"read":"whole","date_system":"1900"}

{"sheet":"Deployment information","index":0,"n_rows":269,"n_cols":22,"rows_kept":269,"cut":false,"hidden":false,"merged":[]}
["Id","SECTION","DIM LEVEL","KEY","VALUE","DEFAULT VALUE","UNIT","SHORT NAME","DESCRIPTION",null,null,null,null,null,"PLATFORM_CODE","TECH_PARAMETER_ID","DIM_LEVEL","PARAMETER_VALUE","TECH_PARAMETER_CODE"]
[2,null,null,null,null,null,null,null,null,null,null,null,null,null,{"$f":"$E$22","v":6903247}]
[2,"TITLE",1,"TITLE","Provor CTS4 (nitrates) ogsbio006e",null,null,"Title of the deployment file",null,null,null,null,null,null,{"$f":"$E$22","v":6903247},390,{"$f":"C3","v":1},{"$f":"E3","v":"Provor CTS4 (nitrates) ogsbio006e"},"PLATFORM_MODEL"]
[2,null,null,null,null,null,null,null,null,null,null,null,null,null,6903247,null,null,{"$f":"IF(ISBLANK(E4),\"\",E4)","v":""}]
[2,"ARGO PROJECT INFORMATION",1,"PI_NAME","Pierre-Marie Poulain",null,null,"Name of the Principal Investigator of the float",null,null,null,null,null,null,6903247,394,{"$f":"C5","v":1},{"$f":"IF(ISBLANK(E5),\"\",E5)","v":"Pierre-Marie Poulain"},"PI_NAME"]
[2,"ARGO PROJECT INFORMATION",1,"PROJECT_NAME","Argo-Italy",null,null,"Name of the project which operates the profiling float",null,null,null,null,null,null,6903247,15,1,"Argo-Italy","PR_EXPERIMENT_ID"]
[2,"ARGO PROJECT INFORMATION",1,"FLOAT_OWNER","OGS_Trieste",null,null,"The owner of the float (may be different from the data centre and operating institution)",null,null,null,null,null,null,6903247,1257,1,"OGS_Trieste","FLOAT_OWNER"]
[2,"ARGO PROJECT INFORMATION",1,"OPERATING_INSTITUTION","OGS_Trieste",null,null,"The operating institution of the float (may be different from the float owner and data centre)",null,null,null,null,null,null,6903247,1258,1,"OGS_Trieste","OPERATING_INSTITUTION"]
[2,null,null,null,null,null,null,null,null,null,null,null,null,null,6903247,null,null,""]
[2,"PLATFORM INFORMATION",1,"PLATFORM_FAMILY","FLOAT",null,null,"Category of instrument",null,null,null,null,null,null,6903247,2081,1,"FLOAT","PLATFORM_FAMILY"]
[2,"PLATFORM INFORMATION",1,"PLATFORM_TYPE","PROVOR_III",null,null,"Type of float",null,null,null,null,null,null,6903247,2209,1,"PROVOR_III","PLATFORM_TYPE"]
[2,"PLATFORM INFORMATION",1,"WMO_INST_TYPE ",839,null,null,"Instrument type from WMO code table 1770",null,null,null,null,null,null,6903247,13,1,839," PR_PROBE_CODE "]
[2,"PLATFORM INFORMATION",1,"PLATFORM_MAKER","NKE",null,null,"Name of the manufacturer",null,null,null,null,null,null,6903247,391,1,"NKE","PLATFORM_MAKER"]
[2,"PLATFORM INFORMATION",1,"BATTERY_TYPE","Lithium",null,null,"Describes the type of battery packs in the float",null,null,null,null,null,null,6903247,1248,1,"Lithium","BATTERY_TYPE"]
[2,"PLATFORM INFORMATION",1,"BATTERY_PACKS","WILPA1973",null,null,"Configuration of battery packs",null,null,null,null,null,null,6903247,1249,1,"WILPA1973","BATTERY_PACKS"]
[2,"PLATFORM INFORMATION",1,"FLOAT_SAIL_ID",null,null,null,"Float sail ID",null,null,null,null,null,null,6903247,2082,1,"","FLOAT_SAIL_ID"]
[2,"PLATFORM INFORMATION",1,"FLOAT_SERIAL_NUMBER"," 13 IT S4 06",null,null,"Float serial number",null,null,null,null,null,null,6903247,392,1," 13 IT S4 06","INST_REFERENCE"]
[2,"PLATFORM INFORMATION",1,"CONTROLLER_BOARD_TYPE_PRIMARY","I535",null,null,"Describes the type of controller board",null,null,null,null,null,null,6903247,1250,{"$f":"IF(ISBLANK(C18),\"\",C18)","v":1},"I535","CONTROLLER_BOARD_TYPE_PRIMARY"]
[2,"PLATFORM INFORMATION",1,"CONTROLLER_BOARD_TYPE_SECONDARY","CAMAT256",null,null,"Only applicable if there is more than one controller board in the float. Describes the type of the second controller board.",null,null,null,null,null,null,6903247,1251,1,"CAMAT256","CONTROLLER_BOARD_TYPE_SECONDARY"]
[2,"PLATFORM INFORMATION",1,"CONTROLLER_BOARD_SERIAL_NO_PRIMARY","C128040-019",null,null,"The serial number for the primary controller board",null,null,null,null,null,null,6903247,1252,1,"C128040-019","CONTROLLER_BOARD_SERIAL_NO_PRIMA"]
[2,"PLATFORM INFORMATION",1,"CONTROLLER_BOARD_SERIAL_NO_SECONDARY","l1311011",null,null,"Only applicable if there is more than one controller board in the float. The serial number for the secondary controller board.",null,null,null,null,null,null,6903247,1253,1,"l1311011","CONTROLLER_BOARD_SERIAL_NO_SECON"]
[2,"PLATFORM INFORMATION",1,"WMO_NUMBER",6903247,null,null,"Float WMO number",null,null,null,null,null,null,6903247,null,1,6903247]
[2,"PLATFORM INFORMATION",1,"LOGIN_NAME","ogsbio006e",null,null,"Iridium Rudics account",null,null,null,null,null,null,6903247,384,{"$f":"IF(ISBLANK(C23),\"\",C23)","v":1},"ogsbio006e","PTT"]
[2,"PLATFORM INFORMATION",1,"SIM_NUMBER","8988169234000407015",null,null,"Sim number",null,null,null,null,null,null,6903247,2084,1,"8988169234000407015","SIM_NUMBER"]
[2,"PLATFORM INFORMATION",1,"IMEI_NUMBER","300125010219260",null,null,"Float Argos Id (decimal)",null,null,null,null,null,null,6903247,1243,1,"300125010219260","IMEI"]
[2,"PLATFORM INFORMATION",1,"BLUETOOTH_NUMBER","2013 07 019",null,null,"Float bluetooth number",null,null,null,null,null,null,6903247,2085,1,"2013 07 019","BLUETOOTH_NUMBER"]
[2,"PLATFORM INFORMATION",1,"FIRMWARE_VERSION","3.02",null,null,"Float firmware version",null,null,null,null,null,null,6903247,961,1,"3.02","FIRMWARE_VERSION"]
[2,"PLATFORM INFORMATION",1,"STANDARD_FORMAT_ID ",null,null,null,"Standardised format number as described in the online reference table: http://tinyurl.com/qy7fdqc ",null,null,null,null,null,null,6903247,1246,1,"","STANDARD_FORMAT_ID "]
[2,"PLATFORM INFORMATION",1,"MANUAL_VERSION ",null,null,null,"Float manual version date or number",null,null,null,null,null,null,6903247,1244,1,"","MANUAL_VERSION "]
[2,"PLATFORM INFORMATION",1,"FIRMWARE_CHECKSUM",null,null,null,"Firmware checksum (copy of PRE_DEPLOY_FIRMWARE_CHECKSUM parameter value)",null,null,null,null,null,null,6903247,2086,1,null,"FIRMWARE_CHECKSUM"]
[2,"PLATFORM INFORMATION",1,"CORIOLIS_DECODER_VERSION",null,null,null,"Coriolis decoder version",null,null,null,null,null,null,6903247,2,1,"","PR_VERSION"]
[2,null,null,null,null,null,null,null,null,null,null,null,null,null,6903247]
[2,"DEPLOYMENT CHECKS",1,"DEPLOY_VISUAL_CHECK","OK",null,null,"Comment after visual inspection of the float",null,null,null,null,null,null,6903247,2087,{"$f":"C33","v":1},{"$f":"IF(ISBLANK(E33),\"\",E33)","v":"OK"},"DPLY_FLOAT_VISUAL_CHECK_CMT"]
[2,"DEPLOYMENT CHECKS",1,"DEPLOY_BALLAST_CHECK","OK",null,null,"Comment after visual inspection of the ballast",null,null,null,null,null,null,6903247,2088,{"$f":"C34","v":1},{"$f":"IF(ISBLANK(E34),\"\",E34)","v":"OK"},"DPLY_BALLAST_VISUAL_CHECK_CMT"]
[2,"DEPLOYMENT INFORMATION",1,"DEPLOY_MISSION","PROTEVS PERLE",null,null,"Deployment mission name (cruise name)",null,null,null,null,null,null,6903247,429,1,"PROTEVS PERLE","CRUISE_NAME"]
[2,"DEPLOYMENT INFORMATION",1,"DEPLOY_SHIP","N/O ATALANTE",null,null,"Deployment ship name",null,null,null,null,null,null,6903247,399,1,"N/O ATALANTE","DEPLOY_PLATFORM"]
[2,"DEPLOYMENT INFORMATION",1,"DEPLOY_OPERATOR_NAME","BLEUNVEN",null,null,"Name of the operator in charge of the deployment",null,null,null,null,null,null,6903247,2097,1,"BLEUNVEN","DPLY_OPERATOR_NAME"]
[2,"DEPLOYMENT INFORMATION",1,"DEPLOY_PROFILE_DONE","no",null,null,"CTD or XBT profile done during deployment (yes/no)",null,null,null,null,null,null,6903247,401,1,"no","DEPLOY_AVAILABLE_PROFILE_ID"]
[2,"DEPLOYMENT INFORMATION",1,"DEPLOY_MAGNET_REMOVAL_TIME","2018-10-18T04:25:00",null,null,"Magnet removal  time (dd/mm/yyyy hh:mm)",null,null,null,null,null,null,6903247,2089,1,"2018-10-18T04:25:00","STARTUP_DATE"]
[2,"DEPLOYMENT INFORMATION",1,"DEPLOY_FLOAT_INTERNAL_CHECK","OK",null,null,"Comment on float internal checks (valve and pump actions, argos transmission check) ",null,null,null,null,null,null,6903247,2275,{"$f":"C40","v":1},"OK","DPLY_FLOAT_INTERNAL_CHECK_CMT"]
[2,"DEPLOYMENT INFORMATION",1,"DEPLOY_TIME","2018-10-18T04:40:00",null,null,"Deployment time ( dd/mm/yyyy hh:mm )",null,null,null,null,null,null,6903247,8,1,"2018-10-18T04:40:00","PR_LAUNCH_DATETIME"]
[2,"DEPLOYMENT INFORMATION",1,"DEPLOY_LATITUDE","34°12.350' N",null,null,"Deployment latitude (dd°mm,mm N/S or dd°mm'ss\" N/S)",null,null,null,null,null,null,6903247,9,1,34.205800000000004,"PR_LAUNCH_LATITUDE"]
[2,"DEPLOYMENT INFORMATION",1,"DEPLOY_LONGITUDE","026°03.130' E",null,null,"Deployment longitude  (ddd°mm,mm E/W or ddd°mm'ss\" E/W)",null,null,null,null,null,null,6903247,10,1,26.052199999999999,"PR_LAUNCH_LONGITUDE"]
[2,"DEPLOYMENT INFORMATION",1,"DEPLOY_BUOYANCY",null,null,null,"Buoyancy description",null,null,null,null,null,null,6903247,2096,1,null,"DPLY_BUOYANCY_DESCRIPTION"]
[2,"DEPLOYMENT INFORMATION",1,"DEPLOY_METHOD","Manual",null,null,"Deployment method (release box, manual, expendable cardboard, etc…)",null,null,null,null,null,null,6903247,2098,1,"Manual","DPLY_METHOD"]
[2,"DEPLOYMENT INFORMATION",1,"DEPLOY_HEIGHT",4,null,null,"Deployment height (m)",null,null,null,null,null,null,6903247,2276,1,4,"DPLY_HEIGHT"]
[2,"DEPLOYMENT INFORMATION",1,"DEPLOY_SHIP_SPEED",1,null,null,"Ship speed (kts)",null,null,null,null,null,null,6903247,2277,1,1,"DPLY_SHIP_SPEED"]
[2,"DEPLOYMENT INFORMATION",1,"DEPLOY_WIND_SPEED",2,null,null,"Wind speed (Beaufort)",null,null,null,null,null,null,6903247,2278,1,2,"DPLY_WIND_SPEED"]
[2,"DEPLOYMENT INFORMATION",1,"DEPLOY_SEA_STATE","Smooth (0.1 to 0.5 m)",null,null,"Sea state (calm, smooth, slight, moderate, rough, very rough, high, very high, phenomenal)",null,null,null,null,null,null,6903247,2279,1,"Smooth (0.1 to 0.5 m)","DPLY_SEA_STATE"]
[2,"DEPLOYMENT INFORMATION",1,"DEPLOY_BATHYMETRY",2621,null,null,"Bathymetry at deployment position (m)",null,null,null,null,null,null,6903247,290,1,2621,"BATHY"]
[2,"DEPLOYMENT INFORMATION",1,"DEPLOY_COMMENT",null,null,null,"Miscellaneous comment on the deployment",null,null,null,null,null,null,6903247,2099,1,null,"DPLY_CMT"]
[2,null,null,"           ",null,null,null,null,null,null,null,null,null,null,6903247]
[2,"SENSOR INFORMATION",1,"SENSOR","CTD_PRES",null,null,"Sensor name",null,null,null,null,null,null,6903247,408,{"$f":"IF(ISBLANK(C53),\"\",C53)","v":1},{"$f":"IF(ISBLANK(E53),\"\",E53)","v":"CTD_PRES"},"SENSOR"]
[2,"SENSOR INFORMATION",1,"SENSOR_MAKER","DRUCK",null,null,"Sensor manufacturer",null,null,null,null,null,null,6903247,409,1,"DRUCK","SENSOR_MAKER"]
[2,"SENSOR INFORMATION",1,"SENSOR_MODEL","DRUCK_2900PSIA   ",null,null,"Sensor model",null,null,null,null,null,null,6903247,410,1,"DRUCK_2900PSIA   ","SENSOR_MODEL"]
[2,"SENSOR INFORMATION",1,"SENSOR_SERIAL_NUMBER",2142631,null,null,"Sensor serial number",null,null,null,null,null,null,6903247,411,1,2142631,"SENSOR_SERIAL_NO"]
[2,"SENSOR INFORMATION",2,"SENSOR","CTD_TEMP",null,null,"Sensor name",null,null,null,null,null,null,6903247,408,2,"CTD_TEMP","SENSOR"]
[2,"SENSOR INFORMATION",2,"SENSOR_MAKER","SBE",null,null,"Sensor manufacturer",null,null,null,null,null,null,6903247,409,2,"SBE","SENSOR_MAKER"]
[2,"SENSOR INFORMATION",2,"SENSOR_MODEL","SBE41CP",null,null,"Sensor model",null,null,null,null,null,null,6903247,410,2,"SBE41CP","SENSOR_MODEL"]
[2,"SENSOR INFORMATION",2,"SENSOR_SERIAL_NUMBER","41-5398",null,null,"Sensor serial number",null,null,null,null,null,null,6903247,411,2,"41-5398","SENSOR_SERIAL_NO"]
[2,"SENSOR INFORMATION",3,"SENSOR","CTD_CNDC",null,null,"Sensor name",null,null,null,null,null,null,6903247,408,3,"CTD_CNDC","SENSOR"]
[2,"SENSOR INFORMATION",3,"SENSOR_MAKER","SBE",null,null,"Sensor manufacturer",null,null,null,null,null,null,6903247,409,3,"SBE","SENSOR_MAKER"]
[2,"SENSOR INFORMATION",3,"SENSOR_MODEL","SBE41CP",null,null,"Sensor model",null,null,null,null,null,null,6903247,410,3,"SBE41CP","SENSOR_MODEL"]
[2,"SENSOR INFORMATION",3,"SENSOR_SERIAL_NUMBER","41-5398",null,null,"Sensor serial number",null,null,null,null,null,null,6903247,411,3,"41-5398","SENSOR_SERIAL_NO"]
[2,"SENSOR INFORMATION",4,"SENSOR","FLUOROMETER_CHLA",null,null,"Sensor name",null,null,null,null,null,null,6903247,408,301,"FLUOROMETER_CHLA","SENSOR"]
[2,"SENSOR INFORMATION",4,"SENSOR_MAKER","WETLABS",null,null,"Sensor manufacturer",null,null,null,null,null,null,6903247,409,301,"WETLABS","SENSOR_MAKER"]
[2,"SENSOR INFORMATION",4,"SENSOR_MODEL","ECO_PUCK",null,null,"Sensor model",null,null,null,null,null,null,{"$f":"$E$22","v":6903247},410,301,"ECO_PUCK","SENSOR_MODEL"]
[2,"SENSOR INFORMATION",4,"SENSOR_SERIAL_NUMBER",92,null,null,"Sensor serial number",null,null,null,null,null,null,6903247,411,301,92,"SENSOR_SERIAL_NO"]
[2,"SENSOR INFORMATION",5,"SENSOR","FLUOROMETER_CDOM",null,null,"Sensor name",null,null,null,null,null,null,6903247,408,303,"FLUOROMETER_CDOM","SENSOR"]
[2,"SENSOR INFORMATION",5,"SENSOR_MAKER","WETLABS",null,null,"Sensor manufacturer",null,null,null,null,null,null,6903247,409,303,"WETLABS","SENSOR_MAKER"]
[2,"SENSOR INFORMATION",5,"SENSOR_MODEL","ECO_PUCK",null,null,"Sensor model",null,null,null,null,null,null,6903247,410,303,"ECO_PUCK","SENSOR_MODEL"]
[2,"SENSOR INFORMATION",5,"SENSOR_SERIAL_NUMBER",92,null,null,"Sensor serial number",null,null,null,null,null,null,6903247,411,303,92,"SENSOR_SERIAL_NO"]
[2,"SENSOR INFORMATION",6,"SENSOR","SCATTEROMETER_BBP",null,null,"Sensor name",null,null,null,null,null,null,6903247,408,302,"SCATTEROMETER_BBP","SENSOR"]
[2,"SENSOR INFORMATION",6,"SENSOR_MAKER","WETLABS",null,null,"Sensor manufacturer",null,null,null,null,null,null,6903247,409,302,"WETLABS","SENSOR_MAKER"]
[2,"SENSOR INFORMATION",6,"SENSOR_MODEL","ECO_PUCK",null,null,"Sensor model",null,null,null,null,null,null,6903247,410,302,"ECO_PUCK","SENSOR_MODEL"]
[2,"SENSOR INFORMATION",6,"SENSOR_SERIAL_NUMBER",92,null,null,"Sensor serial number",null,null,null,null,null,null,6903247,411,302,92,"SENSOR_SERIAL_NO"]
[2,"SENSOR INFORMATION",7,"SENSOR","RADIOMETER_DOWN_IRR",null,null,"Sensor name",null,null,null,null,null,null,6903247,408,201,"RADIOMETER_DOWN_IRR","SENSOR"]
[2,"SENSOR INFORMATION",7,"SENSOR_MAKER","SATLANTIC",null,null,"Sensor manufacturer",null,null,null,null,null,null,6903247,409,201,"SATLANTIC","SENSOR_MAKER"]
[2,"SENSOR INFORMATION",7,"SENSOR_MODEL","SATLANTIC_OCR504",null,null,"Sensor model",null,null,null,null,null,null,6903247,410,201,"SATLANTIC_OCR504","SENSOR_MODEL"]
[2,"SENSOR INFORMATION",7,"SENSOR_SERIAL_NUMBER",284,null,null,"Sensor serial number",null,null,null,null,null,null,6903247,411,201,284,"SENSOR_SERIAL_NO"]
[2,"SENSOR INFORMATION",8,"SENSOR","RADIOMETER_PAR",null,null,"Sensor name",null,null,null,null,null,null,6903247,408,202,"RADIOMETER_PAR","SENSOR"]
[2,"SENSOR INFORMATION",8,"SENSOR_MAKER","SATLANTIC",null,null,"Sensor manufacturer",null,null,null,null,null,null,6903247,409,202,"SATLANTIC","SENSOR_MAKER"]
[2,"SENSOR INFORMATION",8,"SENSOR_MODEL","SATLANTIC_OCR504",null,null,"Sensor model",null,null,null,null,null,null,6903247,410,202,"SATLANTIC_OCR504","SENSOR_MODEL"]
[2,"SENSOR INFORMATION",8,"SENSOR_SERIAL_NUMBER",284,null,null,"Sensor serial number",null,null,null,null,null,null,6903247,411,202,284,"SENSOR_SERIAL_NO"]
[2,"SENSOR INFORMATION",9,"SENSOR","OPTODE_DOXY",null,null,"Sensor name",null,null,null,null,null,null,6903247,408,101,"OPTODE_DOXY","SENSOR"]
[2,"SENSOR INFORMATION",9,"SENSOR_MAKER","AANDERAA",null,null,"Sensor manufacturer",null,null,null,null,null,null,6903247,409,101,"AANDERAA","SENSOR_MAKER"]
[2,"SENSOR INFORMATION",9,"SENSOR_MODEL","AANDERAA_OPTODE_4330",null,null,"Sensor model",null,null,null,null,null,null,6903247,410,101,"AANDERAA_OPTODE_4330","SENSOR_MODEL"]
[2,"SENSOR INFORMATION",9,"SENSOR_SERIAL_NUMBER",1466,null,null,"Sensor serial number",null,null,null,null,null,null,6903247,411,101,1466,"SENSOR_SERIAL_NO"]
[2,"SENSOR INFORMATION",10,"SENSOR","SPECTROPHOTOMETER_NITRATE",null,null,"Sensor name",null,null,null,null,null,null,6903247,408,601,"SPECTROPHOTOMETER_NITRATE","SENSOR"]
[2,"SENSOR INFORMATION",10,"SENSOR_MAKER","SATLANTIC",null,null,"Sensor manufacturer",null,null,null,null,null,null,6903247,409,601,"SATLANTIC","SENSOR_MAKER"]
[2,"SENSOR INFORMATION",10,"SENSOR_MODEL","SUNA_V2",null,null,"Sensor model",null,null,null,null,null,null,6903247,410,601,"SUNA_V2","SENSOR_MODEL"]
[2,"SENSOR INFORMATION",10,"SENSOR_SERIAL_NUMBER",335,null,null,"Sensor serial number",null,null,null,null,null,null,6903247,411,601,335,"SENSOR_SERIAL_NO"]
[2,null,null,null,null,null,null,null,null,null,null,null,null,null,6903247]
[2,"PARAMETER INFORMATION",1,"PARAMETER","PRES",null,null,"Parameter name",null,null,null,null,null,null,6903247,415,{"$f":"IF(ISBLANK(C94),\"\",C94)","v":1},"PRES","PARAMETER"]
[2,"PARAMETER INFORMATION",1,"PARAMETER_SENSOR","CTD_PRES",null,null,"Name of the sensor that measures the parameter",null,null,null,null,null,null,6903247,2100,1,"CTD_PRES","PARAMETER_SENSOR"]
[2,"PARAMETER INFORMATION",1,"PARAMETER_UNITS","decibar",null,null,"Units of accuracy and resolution of the parameter",null,null,null,null,null,null,6903247,2206,1,"decibar","PARAMETER_UNITS"]
[2,"PARAMETER INFORMATION",1,"PARAMETER_ACCURACY",2.4,null,null,"Accuracy of the parameter",null,null,null,null,null,null,6903247,2207,1,2.4,"PARAMETER_ACCURACY"]
[2,"PARAMETER INFORMATION",1,"PARAMETER_RESOLUTION",1,null,null,"Resolution of the parameter",null,null,null,null,null,null,6903247,2208,1,1,"PARAMETER_RESOLUTION"]
[2,"PARAMETER INFORMATION",1,"PREDEPLOYMENT_CALIB_EQUATION",null,null,null,"Calibration equation for this parameter",null,null,null,null,null,null,6903247,416,1,"","PREDEPLOYMENT_CALIB_EQUATION"]
[2,"PARAMETER INFORMATION",1,"PREDEPLOYMENT_CALIB_COEFFICIENT",null,null,null,"Calibration coefficients for this equation",null,null,null,null,null,null,6903247,417,1,"","PREDEPLOYMENT_CALIB_COEFFICIENT"]
[2,"PARAMETER INFORMATION",1,"PREDEPLOYMENT_CALIB_COMMENT",null,null,null,"Comments applying to this parameter calibration",null,null,null,null,null,null,6903247,418,1,"","PREDEPLOYMENT_CALIB_COMMENT"]
[2,"PARAMETER INFORMATION",2,"PARAMETER","TEMP",null,null,"Parameter name",null,null,null,null,null,null,6903247,415,2,"TEMP","PARAMETER"]
[2,"PARAMETER INFORMATION",2,"PARAMETER_SENSOR","CTD_TEMP",null,null,"Name of the sensor that measures the parameter",null,null,null,null,null,null,6903247,2100,2,"CTD_TEMP","PARAMETER_SENSOR"]
[2,"PARAMETER INFORMATION",2,"PARAMETER_UNITS","degree_Celsius",null,null,"Units of accuracy and resolution of the parameter",null,null,null,null,null,null,6903247,2206,2,"degree_Celsius","PARAMETER_UNITS"]
[2,"PARAMETER INFORMATION",2,"PARAMETER_ACCURACY",2E-3,null,null,"Accuracy of the parameter",null,null,null,null,null,null,6903247,2207,2,2E-3,"PARAMETER_ACCURACY"]
[2,"PARAMETER INFORMATION",2,"PARAMETER_RESOLUTION",1E-3,null,null,"Resolution of the parameter",null,null,null,null,null,null,6903247,2208,2,1E-3,"PARAMETER_RESOLUTION"]
[2,"PARAMETER INFORMATION",2,"PREDEPLOYMENT_CALIB_EQUATION",null,null,null,"Calibration equation for this parameter",null,null,null,null,null,null,6903247,416,2,"","PREDEPLOYMENT_CALIB_EQUATION"]
[2,"PARAMETER INFORMATION",2,"PREDEPLOYMENT_CALIB_COEFFICIENT",null,null,null,"Calibration coefficients for this equation",null,null,null,null,null,null,6903247,417,2,"","PREDEPLOYMENT_CALIB_COEFFICIENT"]
[2,"PARAMETER INFORMATION",2,"PREDEPLOYMENT_CALIB_COMMENT",null,null,null,"Comments applying to this parameter calibration",null,null,null,null,null,null,6903247,418,2,"","PREDEPLOYMENT_CALIB_COMMENT"]
[2,"PARAMETER INFORMATION",3,"PARAMETER","PSAL",null,null,"Parameter name",null,null,null,null,null,null,6903247,415,3,"PSAL","PARAMETER"]
[2,"PARAMETER INFORMATION",3,"PARAMETER_SENSOR","CTD_CNDC",null,null,"Name of the sensor that measures the parameter",null,null,null,null,null,null,6903247,2100,3,"CTD_CNDC","PARAMETER_SENSOR"]
[2,"PARAMETER INFORMATION",3,"PARAMETER_UNITS","psu",null,null,"Units of accuracy and resolution of the parameter",null,null,null,null,null,null,6903247,2206,3,"psu","PARAMETER_UNITS"]
[2,"PARAMETER INFORMATION",3,"PARAMETER_ACCURACY",5.0000000000000001E-3,null,null,"Accuracy of the parameter",null,null,null,null,null,null,6903247,2207,3,5.0000000000000001E-3,"PARAMETER_ACCURACY"]
[2,"PARAMETER INFORMATION",3,"PARAMETER_RESOLUTION",1E-3,null,null,"Resolution of the parameter",null,null,null,null,null,null,6903247,2208,3,1E-3,"PARAMETER_RESOLUTION"]
[2,"PARAMETER INFORMATION",3,"PREDEPLOYMENT_CALIB_EQUATION",null,null,null,"Calibration equation for this parameter",null,null,null,null,null,null,6903247,416,3,"","PREDEPLOYMENT_CALIB_EQUATION"]
[2,"PARAMETER INFORMATION",3,"PREDEPLOYMENT_CALIB_COEFFICIENT",null,null,null,"Calibration coefficients for this equation",null,null,null,null,null,null,6903247,417,3,"","PREDEPLOYMENT_CALIB_COEFFICIENT"]
[2,"PARAMETER INFORMATION",3,"PREDEPLOYMENT_CALIB_COMMENT",null,null,null,"Comments applying to this parameter calibration",null,null,null,null,null,null,6903247,418,3,{"$f":"IF(ISBLANK(E117),\"\",E117)","v":""},"PREDEPLOYMENT_CALIB_COMMENT"]
[2,"PARAMETER INFORMATION",4,"PARAMETER","CHLA",null,null,"Parameter name",null,null,null,null,null,null,6903247,415,305,"CHLA","PARAMETER"]
[2,"PARAMETER INFORMATION",4,"PARAMETER_SENSOR","FLUOROMETER_CHLA",null,null,"Name of the sensor that measures the parameter",null,null,null,null,null,null,6903247,2100,305,"FLUOROMETER_CHLA","PARAMETER_SENSOR"]
[2,"PARAMETER INFORMATION",4,"PARAMETER_UNITS","mg/m3",null,null,"Units of accuracy and resolution of the parameter",null,null,null,null,null,null,6903247,2206,305,"mg/m3","PARAMETER_UNITS"]
[2,"PARAMETER INFORMATION",4,"PARAMETER_ACCURACY",null,null,null,"Accuracy of the parameter",null,null,null,null,null,null,6903247,2207,305,"","PARAMETER_ACCURACY"]
[2,"PARAMETER INFORMATION",4,"PARAMETER_RESOLUTION",null,null,null,"Resolution of the parameter",null,null,null,null,null,null,6903247,2208,305,"","PARAMETER_RESOLUTION"]
[2,"PARAMETER INFORMATION",4,"PREDEPLOYMENT_CALIB_EQUATION",null,null,null,"Calibration equation for this parameter",null,null,null,null,null,null,6903247,416,305,"","PREDEPLOYMENT_CALIB_EQUATION"]
[2,"PARAMETER INFORMATION",4,"PREDEPLOYMENT_CALIB_COEFFICIENT",null,null,null,"Calibration coefficients for this equation",null,null,null,null,null,null,6903247,417,305,"","PREDEPLOYMENT_CALIB_COEFFICIENT"]
[2,"PARAMETER INFORMATION",4,"PREDEPLOYMENT_CALIB_COMMENT",null,null,null,"Comments applying to this parameter calibration",null,null,null,null,null,null,6903247,418,305,"","PREDEPLOYMENT_CALIB_COMMENT"]
[2,"PARAMETER INFORMATION",5,"PARAMETER","CDOM",null,null,"Parameter name",null,null,null,null,null,null,6903247,415,308,"CDOM","PARAMETER"]
[2,"PARAMETER INFORMATION",5,"PARAMETER_SENSOR","FLUOROMETER_CDOM",null,null,"Name of the sensor that measures the parameter",null,null,null,null,null,null,{"$f":"$E$22","v":6903247},2100,308,"FLUOROMETER_CDOM","PARAMETER_SENSOR"]
[2,"PARAMETER INFORMATION",5,"PARAMETER_UNITS","ppb",null,null,"Units of accuracy and resolution of the parameter",null,null,null,null,null,null,6903247,2206,308,"ppb","PARAMETER_UNITS"]
[2,"PARAMETER INFORMATION",5,"PARAMETER_ACCURACY",null,null,null,"Accuracy of the parameter",null,null,null,null,null,null,6903247,2207,308,"","PARAMETER_ACCURACY"]
[2,"PARAMETER INFORMATION",5,"PARAMETER_RESOLUTION",null,null,null,"Resolution of the parameter",null,null,null,null,null,null,6903247,2208,308,"","PARAMETER_RESOLUTION"]
[2,"PARAMETER INFORMATION",5,"PREDEPLOYMENT_CALIB_EQUATION",null,null,null,"Calibration equation for this parameter",null,null,null,null,null,null,6903247,416,308,"","PREDEPLOYMENT_CALIB_EQUATION"]
[2,"PARAMETER INFORMATION",5,"PREDEPLOYMENT_CALIB_COEFFICIENT",null,null,null,"Calibration coefficients for this equation",null,null,null,null,null,null,6903247,417,308,"","PREDEPLOYMENT_CALIB_COEFFICIENT"]
[2,"PARAMETER INFORMATION",5,"PREDEPLOYMENT_CALIB_COMMENT",null,null,null,"Comments applying to this parameter calibration",null,null,null,null,null,null,6903247,418,308,"","PREDEPLOYMENT_CALIB_COMMENT"]
[2,"PARAMETER INFORMATION",6,"PARAMETER","BBP700",null,null,"Parameter name",null,null,null,null,null,null,6903247,415,306,"BBP700","PARAMETER"]
[2,"PARAMETER INFORMATION",6,"PARAMETER_SENSOR","SCATTEROMETER_BBP",null,null,"Name of the sensor that measures the parameter",null,null,null,null,null,null,6903247,2100,306,"SCATTEROMETER_BBP","PARAMETER_SENSOR"]
[2,"PARAMETER INFORMATION",6,"PARAMETER_UNITS","m-1",null,null,"Units of accuracy and resolution of the parameter",null,null,null,null,null,null,6903247,2206,306,"m-1","PARAMETER_UNITS"]
[2,"PARAMETER INFORMATION",6,"PARAMETER_ACCURACY",null,null,null,"Accuracy of the parameter",null,null,null,null,null,null,6903247,2207,306,"","PARAMETER_ACCURACY"]
[2,"PARAMETER INFORMATION",6,"PARAMETER_RESOLUTION",null,null,null,"Resolution of the parameter",null,null,null,null,null,null,6903247,2208,306,"","PARAMETER_RESOLUTION"]
[2,"PARAMETER INFORMATION",6,"PREDEPLOYMENT_CALIB_EQUATION",null,null,null,"Calibration equation for this parameter",null,null,null,null,null,null,6903247,416,306,"","PREDEPLOYMENT_CALIB_EQUATION"]
[2,"PARAMETER INFORMATION",6,"PREDEPLOYMENT_CALIB_COEFFICIENT",null,null,null,"Calibration coefficients for this equation",null,null,null,null,null,null,6903247,417,306,"","PREDEPLOYMENT_CALIB_COEFFICIENT"]
[2,"PARAMETER INFORMATION",6,"PREDEPLOYMENT_CALIB_COMMENT",null,null,null,"Comments applying to this parameter calibration",null,null,null,null,null,null,6903247,418,306,"","PREDEPLOYMENT_CALIB_COMMENT"]
[2,"PARAMETER INFORMATION",7,"PARAMETER","DOWN_IRRADIANCE380",null,null,"Parameter name",null,null,null,null,null,null,6903247,415,205,"DOWN_IRRADIANCE380","PARAMETER"]
[2,"PARAMETER INFORMATION",7,"PARAMETER_SENSOR","RADIOMETER_DOWN_IRR",null,null,"Name of the sensor that measures the parameter",null,null,null,null,null,null,6903247,2100,205,"RADIOMETER_DOWN_IRR","PARAMETER_SENSOR"]
[2,"PARAMETER INFORMATION",7,"PARAMETER_UNITS","W/m^2/nm",null,null,"Units of accuracy and resolution of the parameter",null,null,null,null,null,null,6903247,2206,205,"W/m^2/nm","PARAMETER_UNITS"]
[2,"PARAMETER INFORMATION",7,"PARAMETER_ACCURACY",null,null,null,"Accuracy of the parameter",null,null,null,null,null,null,6903247,2207,205,"","PARAMETER_ACCURACY"]
[2,"PARAMETER INFORMATION",7,"PARAMETER_RESOLUTION",null,null,null,"Resolution of the parameter",null,null,null,null,null,null,6903247,2208,205,"","PARAMETER_RESOLUTION"]
[2,"PARAMETER INFORMATION",7,"PREDEPLOYMENT_CALIB_EQUATION",null,null,null,"Calibration equation for this parameter",null,null,null,null,null,null,6903247,416,205,"","PREDEPLOYMENT_CALIB_EQUATION"]
[2,"PARAMETER INFORMATION",7,"PREDEPLOYMENT_CALIB_COEFFICIENT",null,null,null,"Calibration coefficients for this equation",null,null,null,null,null,null,6903247,417,205,"","PREDEPLOYMENT_CALIB_COEFFICIENT"]
[2,"PARAMETER INFORMATION",7,"PREDEPLOYMENT_CALIB_COMMENT",null,null,null,"Comments applying to this parameter calibration",null,null,null,null,null,null,6903247,418,205,"","PREDEPLOYMENT_CALIB_COMMENT"]
[2,"PARAMETER INFORMATION",8,"PARAMETER","DOWN_IRRADIANCE412",null,null,"Parameter name",null,null,null,null,null,null,6903247,415,206,"DOWN_IRRADIANCE412","PARAMETER"]
[2,"PARAMETER INFORMATION",8,"PARAMETER_SENSOR","RADIOMETER_DOWN_IRR",null,null,"Name of the sensor that measures the parameter",null,null,null,null,null,null,6903247,2100,206,"RADIOMETER_DOWN_IRR","PARAMETER_SENSOR"]
[2,"PARAMETER INFORMATION",8,"PARAMETER_UNITS","W/m^2/nm",null,null,"Units of accuracy and resolution of the parameter",null,null,null,null,null,null,6903247,2206,206,"W/m^2/nm","PARAMETER_UNITS"]
[2,"PARAMETER INFORMATION",8,"PARAMETER_ACCURACY",null,null,null,"Accuracy of the parameter",null,null,null,null,null,null,6903247,2207,206,"","PARAMETER_ACCURACY"]
[2,"PARAMETER INFORMATION",8,"PARAMETER_RESOLUTION",null,null,null,"Resolution of the parameter",null,null,null,null,null,null,6903247,2208,206,"","PARAMETER_RESOLUTION"]
[2,"PARAMETER INFORMATION",8,"PREDEPLOYMENT_CALIB_EQUATION",null,null,null,"Calibration equation for this parameter",null,null,null,null,null,null,6903247,416,206,"","PREDEPLOYMENT_CALIB_EQUATION"]
[2,"PARAMETER INFORMATION",8,"PREDEPLOYMENT_CALIB_COEFFICIENT",null,null,null,"Calibration coefficients for this equation",null,null,null,null,null,null,6903247,417,206,"","PREDEPLOYMENT_CALIB_COEFFICIENT"]
[2,"PARAMETER INFORMATION",8,"PREDEPLOYMENT_CALIB_COMMENT",null,null,null,"Comments applying to this parameter calibration",null,null,null,null,null,null,6903247,418,206,"","PREDEPLOYMENT_CALIB_COMMENT"]
[2,"PARAMETER INFORMATION",9,"PARAMETER","DOWN_IRRADIANCE490",null,null,"Parameter name",null,null,null,null,null,null,6903247,415,207,"DOWN_IRRADIANCE490","PARAMETER"]
[2,"PARAMETER INFORMATION",9,"PARAMETER_SENSOR","RADIOMETER_DOWN_IRR",null,null,"Name of the sensor that measures the parameter",null,null,null,null,null,null,6903247,2100,207,"RADIOMETER_DOWN_IRR","PARAMETER_SENSOR"]
[2,"PARAMETER INFORMATION",9,"PARAMETER_UNITS","W/m^2/nm",null,null,"Units of accuracy and resolution of the parameter",null,null,null,null,null,null,6903247,2206,207,"W/m^2/nm","PARAMETER_UNITS"]
[2,"PARAMETER INFORMATION",9,"PARAMETER_ACCURACY",null,null,null,"Accuracy of the parameter",null,null,null,null,null,null,6903247,2207,207,"","PARAMETER_ACCURACY"]
[2,"PARAMETER INFORMATION",9,"PARAMETER_RESOLUTION",null,null,null,"Resolution of the parameter",null,null,null,null,null,null,6903247,2208,207,"","PARAMETER_RESOLUTION"]
[2,"PARAMETER INFORMATION",9,"PREDEPLOYMENT_CALIB_EQUATION",null,null,null,"Calibration equation for this parameter",null,null,null,null,null,null,6903247,416,207,"","PREDEPLOYMENT_CALIB_EQUATION"]
[2,"PARAMETER INFORMATION",9,"PREDEPLOYMENT_CALIB_COEFFICIENT",null,null,null,"Calibration coefficients for this equation",null,null,null,null,null,null,6903247,417,207,"","PREDEPLOYMENT_CALIB_COEFFICIENT"]
[2,"PARAMETER INFORMATION",9,"PREDEPLOYMENT_CALIB_COMMENT",null,null,null,"Comments applying to this parameter calibration",null,null,null,null,null,null,6903247,418,207,"","PREDEPLOYMENT_CALIB_COMMENT"]
[2,"PARAMETER INFORMATION",10,"PARAMETER","DOWNWELLING_PAR",null,null,"Parameter name",null,null,null,null,null,null,6903247,415,208,"DOWNWELLING_PAR","PARAMETER"]
[2,"PARAMETER INFORMATION",10,"PARAMETER_SENSOR","RADIOMETER_PAR",null,null,"Name of the sensor that measures the parameter",null,null,null,null,null,null,6903247,2100,208,"RADIOMETER_PAR","PARAMETER_SENSOR"]
[2,"PARAMETER INFORMATION",10,"PARAMETER_UNITS","microMoleQuanta/m^2/sec",null,null,"Units of accuracy and resolution of the parameter",null,null,null,null,null,null,6903247,2206,208,"microMoleQuanta/m^2/sec","PARAMETER_UNITS"]
[2,"PARAMETER INFORMATION",10,"PARAMETER_ACCURACY",null,null,null,"Accuracy of the parameter",null,null,null,null,null,null,6903247,2207,208,"","PARAMETER_ACCURACY"]
[2,"PARAMETER INFORMATION",10,"PARAMETER_RESOLUTION",null,null,null,"Resolution of the parameter",null,null,null,null,null,null,6903247,2208,208,"","PARAMETER_RESOLUTION"]
[2,"PARAMETER INFORMATION",10,"PREDEPLOYMENT_CALIB_EQUATION",null,null,null,"Calibration equation for this parameter",null,null,null,null,null,null,6903247,416,208,"","PREDEPLOYMENT_CALIB_EQUATION"]
[2,"PARAMETER INFORMATION",10,"PREDEPLOYMENT_CALIB_COEFFICIENT",null,null,null,"Calibration coefficients for this equation",null,null,null,null,null,null,6903247,417,208,"","PREDEPLOYMENT_CALIB_COEFFICIENT"]
[2,"PARAMETER INFORMATION",10,"PREDEPLOYMENT_CALIB_COMMENT",null,null,null,"Comments applying to this parameter calibration",null,null,null,null,null,null,6903247,418,208,"","PREDEPLOYMENT_CALIB_COMMENT"]
[2,"PARAMETER INFORMATION",11,"PARAMETER","DOXY",null,null,"Parameter name",null,null,null,null,null,null,6903247,415,104,"DOXY","PARAMETER"]
[2,"PARAMETER INFORMATION",11,"PARAMETER_SENSOR","OPTODE_DOXY",null,null,"Name of the sensor that measures the parameter",null,null,null,null,null,null,6903247,2100,104,"OPTODE_DOXY","PARAMETER_SENSOR"]
[2,"PARAMETER INFORMATION",11,"PARAMETER_UNITS","micromole/kg",null,null,"Units of accuracy and resolution of the parameter",null,null,null,null,null,null,6903247,2206,104,"micromole/kg","PARAMETER_UNITS"]
[2,"PARAMETER INFORMATION",11,"PARAMETER_ACCURACY",null,null,null,"Accuracy of the parameter",null,null,null,null,null,null,6903247,2207,104,"","PARAMETER_ACCURACY"]
[2,"PARAMETER INFORMATION",11,"PARAMETER_RESOLUTION",null,null,null,"Resolution of the parameter",null,null,null,null,null,null,6903247,2208,104,"","PARAMETER_RESOLUTION"]
[2,"PARAMETER INFORMATION",11,"PREDEPLOYMENT_CALIB_EQUATION",null,null,null,"Calibration equation for this parameter",null,null,null,null,null,null,6903247,416,104,"","PREDEPLOYMENT_CALIB_EQUATION"]
[2,"PARAMETER INFORMATION",11,"PREDEPLOYMENT_CALIB_COEFFICIENT",null,null,null,"Calibration coefficients for this equation",null,null,null,null,null,null,6903247,417,104,"","PREDEPLOYMENT_CALIB_COEFFICIENT"]
[2,"PARAMETER INFORMATION",11,"PREDEPLOYMENT_CALIB_COMMENT",null,null,null,"Comments applying to this parameter calibration",null,null,null,null,null,null,6903247,418,104,"","PREDEPLOYMENT_CALIB_COMMENT"]
[2,"PARAMETER INFORMATION",12,"PARAMETER","NITRATE",null,null,"Parameter name",null,null,null,null,null,null,6903247,415,608,"NITRATE","PARAMETER"]
[2,"PARAMETER INFORMATION",12,"PARAMETER_SENSOR","SPECTROPHOTOMETER_NITRATE",null,null,"Name of the sensor that measures the parameter",null,null,null,null,null,null,6903247,2100,608,"SPECTROPHOTOMETER_NITRATE","PARAMETER_SENSOR"]
[2,"PARAMETER INFORMATION",12,"PARAMETER_UNITS","micromole/kg",null,null,"Units of accuracy and resolution of the parameter",null,null,null,null,null,null,6903247,2206,608,"micromole/kg","PARAMETER_UNITS"]
[2,"PARAMETER INFORMATION",12,"PARAMETER_ACCURACY",null,null,null,"Accuracy of the parameter",null,null,null,null,null,null,6903247,2207,608,"","PARAMETER_ACCURACY"]
[2,"PARAMETER INFORMATION",12,"PARAMETER_RESOLUTION",null,null,null,"Resolution of the parameter",null,null,null,null,null,null,6903247,2208,608,"","PARAMETER_RESOLUTION"]
[2,"PARAMETER INFORMATION",12,"PREDEPLOYMENT_CALIB_EQUATION",null,null,null,"Calibration equation for this parameter",null,null,null,null,null,null,6903247,416,608,"","PREDEPLOYMENT_CALIB_EQUATION"]
[2,"PARAMETER INFORMATION",12,"PREDEPLOYMENT_CALIB_COEFFICIENT",null,null,null,"Calibration coefficients for this equation",null,null,null,null,null,null,6903247,417,608,"","PREDEPLOYMENT_CALIB_COEFFICIENT"]
[2,"PARAMETER INFORMATION",12,"PREDEPLOYMENT_CALIB_COMMENT",null,null,null,"Comments applying to this parameter calibration",null,null,null,null,null,null,6903247,418,608,"","PREDEPLOYMENT_CALIB_COMMENT"]
[2,null,null,null,null,null,null,null,null,null,null,null,null,null,{"$f":"$E$22","v":6903247}]
[2,"SENSOR WAVELENGTH",1,"OCR_OPTICAL_WAVELENGTH (in nm)",380,null,null,"Wevelength of OCR measurements 1",null,null,null,null,null,null,6903247,2197,{"$f":"IF(ISBLANK(C191),\"\",C191)","v":1},{"$f":"IF(ISBLANK(J191),\"\",J191)","v":""},"OCR_DOWN_IRR_WAVELENGTH"]
[2,"SENSOR WAVELENGTH",2,"OCR_OPTICAL_WAVELENGTH (in nm)",412,null,null,"Wavelength of OCR measurements 2",null,null,null,null,null,null,6903247,2197,2,{"$f":"IF(ISBLANK(J192),\"\",J192)","v":""},"OCR_DOWN_IRR_WAVELENGTH"]
[2,"SENSOR WAVELENGTH",3,"OCR_OPTICAL_WAVELENGTH (in nm)",490,null,null,"Wavelength of OCR measurements 3",null,null,null,null,null,null,6903247,2197,3,{"$f":"IF(ISBLANK(J193),\"\",J193)","v":""},"OCR_DOWN_IRR_WAVELENGTH"]
[2,"SENSOR WAVELENGTH",1,"ECO3_OPTICAL_WAVELENGTH (in nm)",700,null,null,"Wavelength of the ECO Puck measurements of the backscattering",null,null,null,null,null,null,6903247,2186,1,{"$f":"IF(ISBLANK(J194),\"\",J194)","v":""},"ECO_BETA_WAVELENGTH"]
[2,"SENSOR WAVELENGTH",2,"ECO3_OPTICAL_WAVELENGTH (in nm)",532,null,null,"Wavelength of the ECO Puck measurements of the backscattering",null,null,null,null,null,null,6903247,2186,2,null,"ECO_BETA_WAVELENGTH"]
[2,"SENSOR WAVELENGTH",1,"CROVER_OPTICAL_WAVELENGTH (in nm)",660,null,null,"Wavelength of the transmissometer measurement",null,null,null,null,null,null,6903247,2182,1,{"$f":"IF(ISBLANK(J196),\"\",J196)","v":""},"CROVER_BEAM_ATT_WAVELENGTH"]
[2,null,null,null,null,null,null,null,null,null,null,null,null,null,6903247,null,""]
[2,"SENSOR MOUNT INFORMATION",1,"OPTODE: vertical pressure offset (in dbar)",0,null,null,"Distance OPTODE-CTD",null,null,null,null,null,null,6903247,2199,1,{"$f":"IF(ISBLANK(J198),\"\",J198)","v":""},"OPTODE_VERTICAL_PRES_OFFSET"]
[2,"SENSOR MOUNT INFORMATION",2,"OCR: vertical pressure offset (in dbar)",-0.08,null,null,"Distance OCR-CTD",null,null,null,null,null,null,6903247,2198,2,null,"OCR_VERTICAL_PRES_OFFSET"]
[2,"SENSOR MOUNT INFORMATION",3,"ECO: vertical pressure offset (in dbar)",0.1,null,null,"Distance ECO-CTD",null,null,null,null,null,null,6903247,2195,3,null,"ECO_VERTICAL_PRES_OFFSET"]
[2,"SENSOR MOUNT INFORMATION",4,"CROVER: vertical pressure offset (in dbar)",null,null,null,"Distance CROVER-CTD",null,null,null,null,null,null,6903247,2183,4,null,"CROVER_VERTICAL_PRES_OFFSET"]
[2,"SENSOR MOUNT INFORMATION",5,"SUNA: vertical pressure offset (in dbar)",1.5,null,null,"Distance SUNA-CTD",null,null,null,null,null,null,6903247,2200,5,null,"SUNA_VERTICAL_PRES_OFFSET"]
[2,null,null,null,null,null,null,null,null,null,null,null,null,null,6903247,null,""]
[2,"MISSION CONFIGURATION PARAMETERS",1,"PREDEPLOY_CONFIG_FILE_NAME",null,null,null,"Name of the file which reports the predeployment configuration",null,null,null,null,null,null,6903247,null,1,{"$f":"IF(ISBLANK(J204),\"\",J204)","v":""}]
[2,null,null,null,null,null,null,null,null,null,null,null,null,null,6903247]
[2,"SENSOR CALIBRATION INFORMATION",1,"OPTODE_CALIBRATION_CERTIFICATE",null,null,null,"Name of the file which contains the optode calibration certificate",null,null,null,null,null,null,6903247,null,{"$f":"IF(ISBLANK(C206),\"\",C206)","v":1},{"$f":"IF(ISBLANK(J206),\"\",J206)","v":""}]
[2,null,null,null,null,null,null,null,null,null,null,null,null,null,6903247,null,null,{"$f":"IF(ISBLANK(E207),\"\",E207)","v":""}]
[2,"ACCEPTANCE REMARKS",1,"ACCEPT_VISUAL_CHECK",null,null,null,"Comment after visual inspection of the float",null,null,null,null,null,null,6903247,2103,{"$f":"C208","v":1},"","ACPT_FLOAT_VISUAL_CHECK_CMT"]
[2,"ACCEPTANCE REMARKS",1,"ACCEPT_BALLAST_CHECK",null,null,null,"Comment after visual inspection of the ballast",null,null,null,null,null,null,6903247,2104,1,"","ACPT_BALLAST_VISUAL_CHECK_CMT"]
[2,"ACCEPTANCE REMARKS",1,"ACCEPT_FIRMWARE_VERSION",null,null,null,"Float firmware version",null,null,null,null,null,null,6903247,2105,1,"","ACPT_FIRMWARE_VERSION"]
[2,"ACCEPTANCE REMARKS",1,"ACCEPT_CLOCK_SET_BEFORE",null,null,null,"Float clock set (yes/no)",null,null,null,null,null,null,6903247,2107,{"$f":"C211","v":1},"","ACPT_START_CLOCK_SET"]
[2,"ACCEPTANCE REMARKS",1,"ACCEPT_CLOCK_SET_DATE_BEFORE",null,null,null,"Float clock set date (dd/mm/yyyy hh:mm) ('!TI')",null,null,null,null,null,null,6903247,2280,1,"","ACPT_START_CLOCK_SET_VALUE"]
[2,"ACCEPTANCE REMARKS",1,"ACCEPT_BATTERY_VOLTAGE_BEFORE",null,null,null,"Battery voltage (V)",null,null,null,null,null,null,6903247,2108,1,"","ACPT_START_BATTERY_VOLTAGE"]
[2,"ACCEPTANCE REMARKS",1,"ACCEPT_INTERNAL_VACUUM_FULL_BEFORE",null,null,null,"Internal vacuum with full bladder (mbar)",null,null,null,null,null,null,6903247,2109,1,"","ACPT_START_INT_VAC_FULL_BLADDER"]
[2,"ACCEPTANCE REMARKS",1,"ACCEPT_PRESSURE_BEFORE",null,null,null,"Pressure (cbar)  ('?S')",null,null,null,null,null,null,6903247,2281,1,"","ACPT_PRES_VAL_BEFORE"]
[2,"ACCEPTANCE REMARKS",1,"ACCEPT_TEMPERATURE_BEFORE",null,null,null,"Temperature (°C)  ('?S')",null,null,null,null,null,null,6903247,2282,1,"","ACPT_TEMP_VAL_BEFORE"]
[2,"ACCEPTANCE REMARKS",1,"ACCEPT_SALINITY_BEFORE",null,null,null,"Salinity (mPSU)  ('?S')",null,null,null,null,null,null,6903247,2283,1,"","ACPT_PSAL_VAL_BEFORE"]
[2,"ACCEPTANCE REMARKS",1,"ACCEPT_FIRMWARE_CHECKSUM",null,null,null,"Firmware checksum ('!C')",null,null,null,null,null,null,6903247,2106,{"$f":"C218","v":1},"","ACPT_FIRMWARE_CHECKSUM"]
[2,"ACCEPTANCE REMARKS",1,"ACCEPT_SPY_MODE_ON",null,null,null,"Spy mode activated ('!SP ON')",null,null,null,null,null,null,6903247,2113,1,"","ACPT_SPY_MODE_ON"]
[2,"ACCEPTANCE REMARKS",1,"ACCEPT_SHOW_MODE_OFF",null,null,null,"Show mode disabled ('!SH OFF')",null,null,null,null,null,null,6903247,2114,1,"","ACPT_SHOW_MODE_OFF"]
[2,"ACCEPTANCE REMARKS",1,"ACCEPT_ARM_ON",null,null,null,"Mission armed ('!AR ON')",null,null,null,null,null,null,6903247,2115,1,"","ACPT_MISSION_ARMED"]
[2,"ACCEPTANCE DEPLOYMENT",1,"ACCEPT_MAGNET_REMOVAL_TIME",null,null,null,"Magnet removal  time (dd/mm/yyyy hh:mm)",null,null,null,null,null,null,6903247,2116,1,null,"ACPT_STARTUP_DATE"]
[2,"ACCEPTANCE DEPLOYMENT",1,"ACCEPT_FLOAT_INTERNAL_CHECK",null,null,null,"Comment on float internal checks (valve and pump actions, argos transmission check) ",null,null,null,null,null,null,6903247,2284,{"$f":"C223","v":1},{"$f":"IF(ISBLANK(E223),\"\",E223)","v":""},"ACPT_FLOAT_INTERNAL_CHECK_CMT"]
[2,"ACCEPTANCE DEPLOYMENT",1,"ACCEPT_BUOYANCY_BEFORE",null,null,null,"Buoyancy description at deployment",null,null,null,null,null,null,6903247,2285,1,"","ACPT_BUOYANCY_DESCRIPTION_BEFORE"]
[2,"ACCEPTANCE RECOVERY",1,"ACCEPT_BUOYANCY_AFTER",null,null,null,"Buoyancy description at recovery",null,null,null,null,null,null,6903247,2286,1,"","ACPT_BUOYANCY_DESCRIPTION_AFTER"]
[2,"ACCEPTANCE RECOVERY",1,"ACCEPT_CLOCK_DRIFT",null,null,null,"Clock drift",null,null,null,null,null,null,6903247,2124,1,"","ACPT_CLOCK_DRIFT"]
[2,"ACCEPTANCE RECOVERY",1,"ACCEPT_BATTERY_VOLTAGE_AFTER",null,null,null,"Battery voltage (V)",null,null,null,null,null,null,6903247,2127,1,"","ACPT_END_BATTERY_VOLTAGE"]
[2,"ACCEPTANCE RECOVERY",1,"ACCEPT_INTERNAL_VACUUM_AFTER",null,null,null,"Internal vacuum at recovery (mbar)",null,null,null,null,null,null,6903247,2128,1,"","ACPT_END_INT_VAC"]
[2,"ACCEPTANCE RECOVERY",1,"ACCEPT_INTERNAL_VACUUM_COMMENT",null,null,null,"Comment on vacuum measurement after recovery",null,null,null,null,null,null,6903247,2130,{"$f":"C229","v":1},{"$f":"IF(ISBLANK(E229),\"\",E229)","v":""},"ACPT_END_INT_VAC_CMT"]
[2,"ACCEPTANCE RECOVERY",1,"ACCEPT_PRESSURE_AFTER",null,null,null,"Pressure (cbar)  ('?S')",null,null,null,null,null,null,6903247,2287,1,"","ACPT_PRES_VAL_AFTER"]
[2,"ACCEPTANCE RECOVERY",1,"ACCEPT_TEMPERATURE_AFTER",null,null,null,"Temperature (°C)  ('?S')",null,null,null,null,null,null,6903247,2288,1,"","ACPT_TEMP_VAL_AFTER"]
[2,"ACCEPTANCE RECOVERY",1,"ACCEPT_SALINITY_AFTER",null,null,null,"Salinity (mPSU)  ('?S')",null,null,null,null,null,null,6903247,2289,1,"","ACPT_PSAL_VAL_AFTER"]
[2,"ACCEPTANCE RECOVERY",1,"ACCEPT_COMMENT",null,null,null,"General comment on acceptance checks",null,null,null,null,null,null,6903247,2131,{"$f":"C233","v":1},"","ACPT_CMT"]
[2,null,null,null,null,null,null,null,null,null,null,null,null,null,6903247]
[2,"MISSION PROGRAMMING REMARKS",1,"PRE_DEPLOY_VISUAL_CHECK","OK",null,null,"Comment after visual inspection of the float",null,null,null,null,null,null,6903247,2132,1,"OK","P_DPLY_FLOAT_VISUAL_CHECK_CMT"]
[2,"MISSION PROGRAMMING REMARKS",1,"PRE_DEPLOY_BALLAST_CHECK",null,null,null,"Comment after visual inspection of the ballast",null,null,null,null,null,null,6903247,2133,{"$f":"C236","v":1},"","P_DPLY_BALLAST_VISUAL_CHECK_CMT"]
[2,"MISSION PROGRAMMING REMARKS",1,"PRE_DEPLOY_FIRMWARE_VERSION",null,null,null,"Float firmware version ('?VL')",null,null,null,null,null,null,6903247,2290,{"$f":"C237","v":1},"","P_DPLY_FIRMWARE_VERSION"]
[2,"MISSION PROGRAMMING REMARKS",1,"PRE_DEPLOY_CLOCK_SET",null,null,null,"Float clock set",null,null,null,null,null,null,6903247,2134,{"$f":"C238","v":1},"","P_DPLY_CLOCK_SET"]
[2,"MISSION PROGRAMMING REMARKS",1,"PRE_DEPLOY_CLOCK_SET_DATE",null,null,null,"Float clock set date (dd/mm/yyyy hh:mm) ('!TI')",null,null,null,null,null,null,6903247,2291,1,"","P_DPLY_CLOCK_SET_VALUE"]
[2,"MISSION PROGRAMMING REMARKS",1,"PRE_DEPLOY_BATTERY_VOLTAGE",null,null,null,"Battery voltage (V)",null,null,null,null,null,null,6903247,2135,1,"","P_DPLY_BATTERY_VOLTAGE"]
[2,"MISSION PROGRAMMING REMARKS",1,"PRE_DEPLOY_INTERNAL_VACUUM_FULL",null,null,null,"Internal vacuum with full bladder (mbar)",null,null,null,null,null,null,6903247,2136,1,{"$f":"IF(ISBLANK(E241),\"\",E241)","v":""},"P_DPLY_INT_VAC_FULL_BLADDER"]
[2,"MISSION PROGRAMMING REMARKS",1,"PRE_DEPLOY_INTERNAL_VACUUM_COMMENT",null,null,null,"Comment on vacuum measurements",null,null,null,null,null,null,6903247,2137,{"$f":"C242","v":1},{"$f":"IF(ISBLANK(E242),\"\",E242)","v":""},"P_DPLY_INT_VAC_CMT"]
[2,"MISSION PROGRAMMING REMARKS",1,"PRE_DEPLOY_PRESSURE",null,null,null,"Pressure (cbar)  ('?S')",null,null,null,null,null,null,6903247,2292,1,"","P_DPLY_PRES_VAL"]
[2,"MISSION PROGRAMMING REMARKS",1,"PRE_DEPLOY_TEMPERATURE",null,null,null,"Temperature (°C)  ('?S')",null,null,null,null,null,null,6903247,2293,1,"","P_DPLY_TEMP_VAL"]
[2,"MISSION PROGRAMMING REMARKS",1,"PRE_DEPLOY_SALINITY",null,null,null,"Salinity (mPSU)  ('?S')",null,null,null,null,null,null,6903247,2294,1,"","P_DPLY_PSAL_VAL"]
[2,"MISSION PROGRAMMING REMARKS",1,"PRE_DEPLOY_FIRMWARE_CHECKSUM",null,null,null,"Firmware checksum",null,null,null,null,null,null,6903247,null,{"$f":"C246","v":1},{"$f":"IF(ISBLANK(E246),\"\",E246)","v":""}]
[2,"MISSION PROGRAMMING REMARKS",1,"PRE_DEPLOY_SPY_MODE_ON",null,null,null,"Spy mode activated ('!SP ON')",null,null,null,null,null,null,{"$f":"$E$22","v":6903247},2141,1,"","P_DPLY_SPY_MODE_ON"]
[2,"MISSION PROGRAMMING REMARKS",1,"PRE_DEPLOY_SHOW_MODE_OFF",null,null,null,"Show mode disabled ('!SH OFF')",null,null,null,null,null,null,6903247,2142,1,"","P_DPLY_SHOW_MODE_OFF"]
[2,"MISSION PROGRAMMING REMARKS",1,"PRE_DEPLOY_ARM_ON","OK",null,null,"Mission armed ('!AR ON')",null,null,null,null,null,null,6903247,2143,1,"OK","P_DPLY_MISSION_ARMED"]
[2,"MISSION PROGRAMMING REMARKS",1,"PRE_DEPLOY_COMMENT",null,null,null,"General comment on mission programming",null,null,null,null,null,null,6903247,2144,1,"","P_DPLY_CMT"]
[2,null,null,null,null,null,null,null,null,null,null,null,null,null,6903247,3,1,16,"PR_CRC_TYPE"]
[2,null,null,null,null,null,null,null,null,null,null,null,null,null,{"$f":"$E$20","v":"C128040-019"},13,1,null,"PR_PROBE_CODE"]
[2,null,null,null,null,null,null,null,null,null,null,null,null,null,"C128040-019",14,1,null,"PR_RECORDER_CODE"]
[2,null,null,null,null,null,null,null,null,null,null,null,null,null,6903247,16,1,2,"PR_CONDUCTIVITY_ACCURACY"]
[2,null,null,null,null,null,null,null,null,null,null,null,null,null,{"$f":"$E$20","v":"C128040-019"},376,1,"IF","DATA_CENTRE"]
[2,null,null,null,null,null,null,null,null,null,null,null,null,null,"C128040-019",377,1,"GPS","POSITIONING_SYSTEM"]
[2,null,null,null,null,null,null,null,null,null,null,null,null,null,"C128040-019",385,1,"IRIDIUM","TRANS_SYSTEM"]
[2,null,null,null,null,null,null,null,null,null,null,null,null,null,"C128040-019",393,1,"B","DIRECTION"]
[2,null,null,null,null,null,null,null,null,null,null,null,null,null,6903247,396,1,1,"LAUNCH_QC"]
[2,null,null,null,null,null,null,null,null,null,null,null,null,null,6903247,398,1,1,"START_DATE_QC"]
[2,null,null,null,null,null,null,null,null,null,null,null,null,null,6903247,482,1,"2018-10-30T14:00:00","METADATA_DATE_UPDATE",null,null,"date courante sans les MM:SS + 5 heures (mis à jour lors de la validation ou sauvegarde)"]
[2,null,null,null,null,null,null,null,null,null,null,null,null,null,6903247,573,1,1.2,"HANDBOOK_VERSION"]
[2,null,null,null,null,null,null,null,null,null,null,null,null,null,6903247,1,1,"PROVOR","PR_TYPE"]
[2,null,null,null,null,null,null,null,null,null,null,null,null,null,null,null,null,null,null,null,null,"Not considered"]
[2,null,null,null,null,null,null,null,null,null,null,null,null,null,null,null,null,null,null,null,null,"PR_CYCLE_PERIOD_1"]
[2,null,null,null,null,null,null,null,null,null,null,null,null,null,null,null,null,null,null,null,null,"PR_CYCLE_PERIOD_2"]
[2,null,null,null,null,null,null,null,null,null,null,null,null,null,null,null,null,null,null,null,null,"PF_ACTIVITY_FLAG"]
[2,null,null,null,null,null,null,null,null,null,null,null,null,null,null,null,null,null,null,null,null,"LAST_STATION_ID"]
[2,null,null,null,null,null,null,null,null,null,null,null,null,null,null,null,null,null,null,null,null,"TRAJECTORY_DATE_UPDATE"]

{"sheet":"Predefined lists","index":1,"n_rows":72,"n_cols":47,"rows_kept":72,"cut":false,"hidden":false,"merged":[]}
["PLATFORM_FAMILY","DEFINITION",null,"PLATFORM_TYPE","DEFINITION",null,"PLATFORM_MAKER","DEFINITION",null,"SENSOR","DEFINITION (AUM 3.1 du 11 juillet 2014)",null,"SENSOR_MAKER","DEFINITION",null,"SENSOR_MODEL","DEFINITION",null,"CO_VERSION","DEFINITION",null,"SEL_Y_N","DEFINITION",null,"SEL_OK","DEFINITION",null,"BATTERY_TYPE","DEFINITION",null,"INST_TYPE","DEFINITION",null,"RECORDER_CODE","DEFINITION",null,"PARAMETER","long_name","cf standard_name","unit","type",null,"SEA_STATE","DEFINITION",null,"BUOY_DESCRIPTION","DEFINITION"]
["FLOAT","Profiling float",null,"PALACE","Webb Research Corporation – first Argo float model from them",null,"MARTEC","Martec",null,"ACOUSTIC_GEOLOCATION",null,null,"AANDERAA",null,null,"FSI   ","      ",null,null,null,null,null,null,null,null,null,null,"Alkaline",null,null,null,null,null,1,"Sippican strip chart recorder",null,"CNDC","Electrical conductivity","sea_water_electrical_conductivity","mhos/m","c"]
["FLOAT_COASTAL","Coastal float, i.e. ARVOR-C ",null,"APEX","Webb Research Corporation/Teledyne Webb  APEX float",null,"METOCEAN","MetOcean",null,"ACOUSTIC_PRECIPITATION",null,null,"AMETEK",null,null,"SBE   ","      ",null,5.9,"Eco3: 1 BACK + 1 CDOM, sans DOXY",null,"yes",null,null,"OK",null,null,"Lithium",null,null,831,"P-Alace float",null,2,"Sippican MK2A/SSQ-61",null,"PRES","Sea water pressure, equals 0 at sea-level ","sea_water_pressure","decibar","c",null,"Calm (0 to 0.1 m)",null,null,"Water @ 0.5 cm above top of P sensor"]
["FLOAT_DEEP","Profiling Float that is capable of profiling deeper than 2000 dbar",null,"APEX_EM","Webb Research Corporation/Teledyne Webb  APEX ElectroMagnetic float (measures velocity and mixing)",null,"MRV","MRV Systems",null,"CTD_PRES",null,null,"DRUCK",null,null,"SBE37   ","      ",null,5.91,"Eco3: 1 BACK + 1 CDOM, DOXY: Aanderaa standard calib.",null,"no",null,null,null,null,null,"Alkaline and Lithium",null,null,837,"Arvor-C float",null,3,"Sippican MK-9",null,"PSAL","Practical salinity","sea_water_salinity","psu","c",null,"Smooth (0.1 to 0.5 m)",null,null,"Water @ top of P sensor"]
["POLAR_OCEAN_PROFILING_SYSTEM","Ice platform that provides meteorological data is paired with a subsurface platform, either a PROVOR CTS-3 or NEMO float tethered along a cable that uses buoyancy to go up and down.",null,"APEX_D","Teledyne Webb  deep profiling APEX float",null,"NKE","NKE Instrumentation",null,"CTD_TEMP",null,null,"FSI",null,null,"SBE41   ","      ",null,5.92,"Eco3: 1 BACK + 1 CDOM, DOXY: Aanderaa Stern-Volmer",null,null,null,null,null,null,null,null,null,null,838,"Arvor-D float",null,4,"Sippican AN/BHQ-7/MK8",null,"TEMP","Sea temperature in-situ ITS-90 scale","sea_water_temperature","degree_Celsius","c",null,"Slight (0.5 to 1.25 m)",null,null,"Water @ top of buoyancy foam"]
["ICE_TETHERED_PROFILER","Surface ice mounted platform that provides meteorological data and subsurface profiler tethered to a cable that uses a motor to go up and down.",null,"APEX_C","Not yet manufactured",null,"OPTIMARE","Optimare",null,"CTD_CNDC",null,null,"KISTLER",null,null,"SBE41_V2.5   ","      ",null,"6.0","Eco3: 2 BACK, sans DOXY",null,null,null,null,null,null,null,null,null,null,839,"Provor-II float",null,5,"Sippican MK-12",null,"DOXY","Dissolved oxygen","moles_of_oxygen_per_unit_mass_in_sea_water","micromole/kg","b",null,"Moderate (1.25 to 2.5 m)"]
[null,null,null,"PROVOR_MT","Metocean PROVOR float",null,"SBE","Seabird",null,"EM",null,null,"PAINE",null,null,"SBE41_V2.6   ","      ",null,6.01,"Eco3: 2 BACK, DOXY: Aanderaa Stern-Volmer",null,null,null,null,null,null,null,null,null,null,840,"Provor, no conductivity",null,6,"Sippican MK-21",null,"TURBIDITY","Sea water turbidity","sea_water_turbidity","ntu","b",null,"Rough (2.5 to 4 m)"]
[null,null,null,"PROVOR","PROVOR float sold by MARTEC or NKE",null,"SIO_IDG","Scripps Institution of Oceanography – Instrument Development Group",null,"FLUOROMETER_CDOM",null,null,"SBE",null,null,"SBE41_V3   ","      ",null,null,null,null,null,null,null,null,null,null,null,null,null,841,"Provor, Seabird conductivity sensor",null,7,"Sippican MK-8 Linear Recorder",null,"CHLA","Chlorophyll-A","mass_concentration_of_chlorophyll_a_in_sea_water","mg/m3","b",null,"Very rough (4 to 6 m)"]
[null,null,null,"ARVOR","NKE ARVOR float",null,"TSK","Tsurumi-Seiki Co., Ltd.",null,"FLUOROMETER_CHLA",null,null,"SEASCAN",null,null,"SBE41CP   ","      ",null,null,null,null,null,null,null,null,null,null,null,null,null,842,"Provor, FSI conductivity sensor",null,8,"Sippican MK-10",null,"CDOM","Concentration of coloured dissolved organic matter in sea water","-","ppb","b",null,"High (6 to 9 m)"]
[null,null,null,"PROVOR_II","NKE dual board PROVOR float",null,"TWR","Teledyne Webb Research (formerly Webb Research Corporation)",null,"IDO_DOXY",null,null,"WETLABS","Wetlabs Inc.",null,"SBE41CP_IDO_V2.0b   ","   Seabird CTD module with IDO oxygen sensor   ",null,null,null,null,null,null,null,null,null,null,null,null,null,843,"POPS ice Buoy/Float",null,10,"Sparton SOC BT/SV Processor Model 100",null,"NITRATE","Nitrate","moles_of_nitrate_per_unit_mass_in_sea_water","micromoles/kg ","b",null,"Very high (9 to 14 m)"]
[null,null,null,"PROVOR_III","NKE dual board PROVOR float new generation",null,"WHOI","Woods Hole Oceanographic Institution",null,"OPTODE_DOXY",null,null,"MBARI","Monterey Bay Aquarium Research Institute",null,"SBE41CP_V1   ","      ",null,null,null,null,null,null,null,null,null,null,null,null,null,844,"Arvor, Seabird conductivity sensor",null,11,"Lockheed-Sanders Model OL5005",null,"BISULFIDE","Bisulfide","-","micromoles/kg ","b",null,"Phenomenal (over 14 m)"]
[null,null,null,"ARVOR_C","Coastal ARVOR float",null,"WRC","Webb Research Corporation",null,"RADIOMETER_DOWN_IRR",null,null,"SATLANTIC",null,null,"SBE41CP_V1.1   ","      ",null,null,null,null,null,null,null,null,null,null,null,null,null,845,"Webb Research, no conductivity",null,20,"Argos XBT-ST",null,"PH_IN_SITU_TOTAL","pH","sea_water_ph_reported_on_total_scale","dimensionless","b"]
[null,null,null,"ARVOR_D","Deep profiling NKE ARVOR float",null,null,null,null,"RADIOMETER_PAR",null,null,"JAC","JFE Advantech Co., Ltd.",null,"SBE41CP_V1.2   ","      ",null,null,null,null,null,null,null,null,null,null,null,null,null,846,"Webb Research, Seabird sensor",null,21,"CLS-ARGOS / Protecno XBT-ST Model-1",null,"TEMP_DOXY","Sea temperature from oxygene sensor ITS-90 scale","temperature_of_sensor_for_oxygen_in_sea_water","degree_Celsius","i"]
[null,null,null,"SOLO","Scripps Institution of Oceanography – Instrument Development Group SOLO float",null,null,null,null,"SCATTEROMETER_BBP",null,null,"APL_UW","University of Washington, Applied Physics Laboratory",null,"SBE41CP_V1.2a   ","      ",null,null,null,null,null,null,null,null,null,null,null,null,null,847,"Webb Research, FSI sensor",null,22,"CLS-ARGOS / Protecno XBT-ST Model-2",null,"VOLTAGE_DOXY","Voltage reported by oxygen sensor","-","volt","i"]
[null,null,null,"SOLO_W","Woods Hole Oceanographic Institute SOLO float",null,null,null,null,"SCATTEROMETER_TURBIDITY",null,null,"TSK","Tsurumi-Seiki Co., Ltd.",null,"SBE41CP_V1.3   ","      ",null,null,null,null,null,null,null,null,null,null,null,null,null,848,"Apex-EM float",null,30,"BATHY Systems SA-810",null,"FREQUENCY_DOXY","Frequency reported by oxygen sensor","-","hertz","i"]
[null,null,null,"SOLO_II","Scripps Institution of Oceanography – Instrument Development Group SOLO-II float",null,null,null,null,"SPECTROPHOTOMETER_BISULFIDE",null,null,"RBR",null,null,"SBE41CP_V1.3b   ","      ",null,null,null,null,null,null,null,null,null,null,null,null,null,849,"Apex-D deep float",null,31,"Scripps Metrobyte controller",null,"COUNT_DOXY","Count reported by oxygen sensor","-","dimensionless","i"]
[null,null,null,"S2A","MRV SOLOII  float",null,null,null,null,"SPECTROPHOTOMETER_NITRATE",null,null,null,null,null,"SBE41CP_V1.4   ","      ",null,null,null,null,null,null,null,null,null,null,null,null,null,850,"Solo, no conductivity",null,32,"Murayama Denki Z-60-16 III",null,"BPHASE_DOXY","Uncalibrated phase shift reported by oxygen sensor","-","degree","i"]
[null,null,null,"SOLO_D","Scripps Institution of Oceanography – Instrument Development Group deep SOLO float",null,null,null,null,"STS_CNDC",null,null,null,null,null,"SBE41CP_V1.5   ","      ",null,null,null,null,null,null,null,null,null,null,null,null,null,851,"Solo,  Seabird conductivity sensor",null,33,"Murayama Denki Z-60-16 II",null,"DPHASE_DOXY","Calibrated phase shift reported by oxygen sensor","-","degree","i"]
[null,null,null,"NINJA","TSK NINJA float",null,null,null,null,"STS_TEMP",null,null,null,null,null,"SBE41CP_V1.7   ","      ",null,null,null,null,null,null,null,null,null,null,null,null,null,852,"Solo, FSI conductivity sensor",null,34,"Protecno ETSM2",null,"TPHASE_DOXY","Uncalibrated phase shift reported by oxygen sensor","-","degree","i"]
[null,null,null,"NINJA_D","TSK NINJA deep float",null,null,null,null,"TRANSISTOR_PH",null,null,null,null,null,"SBE41CP_V1.8   ","      ",null,null,null,null,null,null,null,null,null,null,null,null,null,853,"Solo2, Seabird conductivity sensor",null,35,"Nautilus Marine Service NMS-XBT",null,"C1PHASE_DOXY","Uncalibrated phase shift reported by oxygen sensor","-","degree","i"]
[null,null,null,"NEMO","OPTIMARE NEMO float",null,null,null,null,"TRANSMISSOMETER_CP",null,null,null,null,null,"SBE41CP_V1.9   ","      ",null,null,null,null,null,null,null,null,null,null,null,null,null,854,"S2A float",null,40,"TSK MK-2A",null,"C2PHASE_DOXY","Uncalibrated phase shift reported by oxygen sensor","-","degree","i"]
[null,null,null,"NAVIS_A","Seabird NAVIS float",null,null,null,null,null,null,null,null,null,null,"SBE41CP_V2   ","      ",null,null,null,null,null,null,null,null,null,null,null,null,null,855,"Ninja, no conductivity sensor",null,41,"TSK MK-2S",null,"MOLAR_DOXY","Uncompensated (pressure and salinity) oxygen concentration reported by the oxygen sensor","mole_concentration_of_dissolved_molecular_oxygen_in_sea_water","micromole/l","i"]
[null,null,null,"NOVA","METOCEAN NOVA float",null,null,null,null,null,null,null,null,null,null,"SBE41CP_V3   ","      ",null,null,null,null,null,null,null,null,null,null,null,null,null,856,"Ninja, SBE conductivity sensor",null,42,"TSK MK-30",null,"PHASE_DELAY_DOXY","Phase delay reported by oxygen sensor","-","microsecond","i"]
[null,null,null,"ALAMO","MRV/WHOI new float",null,null,null,null,null,null,null,null,null,null,"SBE41CP_V3.0a   ","      ",null,null,null,null,null,null,null,null,null,null,null,null,null,857,"Ninja, FSI conductivity sensor",null,43,"TSK MK-30N",null,"MLPL_DOXY","Oxygen concentration reported by the oxygen sensor","-","ml/l","i"]
[null,null,null,"ITP","Ice Tethered Profiler (with modified WHOI moored profiler driven by a traction drive unit)",null,null,null,null,null,null,null,null,null,null,"SBE41CP_V3.0c   ","      ",null,null,null,null,null,null,null,null,null,null,null,null,null,858,"Ninja, TSK conductivity sensor",null,45,"TSK MK-100",null,"NB_SAMPLE","Number of samples in bin","-","dimensionless","i"]
[null,null,null,"POPS_PROVOR","Polar Ocean Profiling System (with PROVOR CTS-3 float)",null,null,null,null,null,null,null,null,null,null,"SBE61CP   ","   new deep Argo \"WOCE for life\" CTD   ",null,null,null,null,null,null,null,null,null,null,null,null,null,859,"Profiling Float, NEMO, no conductivity",null,46,"TSK MK-100 compatible recorder for both XBT and XCTD",null,"RPHASE_DOXY","Uncalibrated red phase shift reported by oxygen sensor","-","degree","i"]
[null,null,null,"POPS_NEMO","Polar Ocean Profiling System (with NEMO float)",null,null,null,null,null,null,null,null,null,null,"SBE61_V4.5.2   ","      ",null,null,null,null,null,null,null,null,null,null,null,null,null,860,"Profiling Float, NEMO, SBE conductivity sensor",null,47,"TSK MK-1130A XCTD recorder",null,"BETA_BACKSCATTERING","Total angle specific volume from backscattering sensor  at x nanometers","-","count","i"]
[null,null,null,"FLOAT","Generic value when unknown",null,null,null,null,null,null,null,null,null,null,"SBE61_V4.5.3   ","      ",null,null,null,null,null,null,null,null,null,null,null,null,null,861,"Profiling Float, NEMO, FSI conductivity sensor",null,48,"TSK AXBT receiver MK-300",null,"FLUORESCENCE_CHLA","Chlorophyll-A signal from fluorescence sensor","-","count","i"]
[null,null,null,null,null,null,null,null,null,null,null,null,null,null,null,"CTD_F01   ","   TSK model   ",null,null,null,null,null,null,null,null,null,null,null,null,null,862,"Solo-D deep float",null,49,"TSK MK-150 Compatible recorder for both XBT and XCTD",null,"TEMP_CPU_CHLA","Thermistor signal from backscattering sensor","-","count","i"]
[null,null,null,null,null,null,null,null,null,null,null,null,null,null,null,"RBR   ","   RBR model   ",null,null,null,null,null,null,null,null,null,null,null,null,null,863,"Navis-A Float",null,50,"JMA ASTOS",null,"FLUORESCENCE_CDOM","Raw fluorescence from colored dissolved organic mater sensor","-","count","i"]
[null,null,null,null,null,null,null,null,null,null,null,null,null,null,null,"SBE43_IDO   ","   Seabird Electrochemical Dissolved Oxygen IDO sensor (volt output)   ",null,null,null,null,null,null,null,null,null,null,null,null,null,864,"Ninja-D deep float",null,60,"ARGOS communications, sampling on up transit.",null,"SIDE_SCATTERING_TURBIDITY","Turbidity signal from side scattering sensor","-","count","i"]
[null,null,null,null,null,null,null,null,null,null,null,null,null,null,null,"SBE43I   ","   configuration option   ",null,null,null,null,null,null,null,null,null,null,null,null,null,865,"Nova float",null,61,"ARGOS communications, sampling on down transit.",null,"TRANSMITTANCE_PARTICLE_BEAM_ATTENUATION","Beam attenuation from transmissiometer sensor at x nanometers","-","count","i"]
[null,null,null,null,null,null,null,null,null,null,null,null,null,null,null,"SBE43F_IDO   ","   Seabird Electrochemical Dissolved Oxygen IDO sensor (frequency output)   ",null,null,null,null,null,null,null,null,null,null,null,null,null,null,null,null,62,"Orbcomm communications, sampling on up transit.",null,"UV_INTENSITY_NITRATE","Intensity of ultra violet flux from nitrate sensor","-","count","i"]
[null,null,null,null,null,null,null,null,null,null,null,null,null,null,null,"SBE63_OPTODE   ","   Seabird Optical Dissolved Oxygen Sensor   ",null,null,null,null,null,null,null,null,null,null,null,null,null,null,null,null,63,"Orbcomm communications, sampling on down transit.",null,"UV_INTENSITY_DARK_NITRATE","Intensity of ultra violet flux dark measurement from nitrate sensor","-","count","i"]
[null,null,null,null,null,null,null,null,null,null,null,null,null,null,null,"AANDERAA_OPTODE   ","      ",null,null,null,null,null,null,null,null,null,null,null,null,null,null,null,null,64,"Iridium, communications sampling on up transit",null,"UV_INTENSITY_DARK_SEAWATER_NITRATE","Intensity of ultra-violet flux dark sea water from nitrate sensor","-","count","i"]
[null,null,null,null,null,null,null,null,null,null,null,null,null,null,null,"AANDERAA_OPTODE_3830   ","      ",null,null,null,null,null,null,null,null,null,null,null,null,null,null,null,null,65,"Iridium communications, sampling on down transit",null,"E_NITRATE","E nitrate???","-","liter/micromol cm","i"]
[null,null,null,null,null,null,null,null,null,null,null,null,null,null,null,"AANDERAA_OPTODE_3835   ","      ",null,null,null,null,null,null,null,null,null,null,null,null,null,null,null,null,70,"CSIRO Devil-1 XBT acquisition system",null,"UV_INTENSITY_REF_NITRATE","Ultra-violet intensity reference from nitrate sensor","-","count","i"]
[null,null,null,null,null,null,null,null,null,null,null,null,null,null,null,"AANDERAA_OPTODE_3930   ","      ",null,null,null,null,null,null,null,null,null,null,null,null,null,null,null,null,71,"CSIRO Devil-2 XBT acquisition system",null,"E_SWA_NITRATE","???","-","dimensionless","i"]
[null,null,null,null,null,null,null,null,null,null,null,null,null,null,null,"AANDERAA_OPTODE_4330   ","      ",null,null,null,null,null,null,null,null,null,null,null,null,null,null,null,null,80,"Applied Microsystems Ltd., MICRO-SVT&P",null,"TEMP_CAL_NITRATE","Temperature calibration from nitrate sensor","-","degree_Celsius","i"]
[null,null,null,null,null,null,null,null,null,null,null,null,null,null,null,"AANDERAA_OPTODE_4330F   ","      ",null,null,null,null,null,null,null,null,null,null,null,null,null,null,null,null,81,"Sea Mammal Research Unit, Univ. St. Andrews, UK, uncorrected salinity from a sea mammal mounted instrument",null,"ABSORBANCE _COR_NITRATE","Absorbance cor??? from nitrate sensor","-","dimensionless","i"]
[null,null,null,null,null,null,null,null,null,null,null,null,null,null,null,"ARO_FT   ","   JAC RINKO   ",null,null,null,null,null,null,null,null,null,null,null,null,null,null,null,null,82,"Sea Mammal Research Unit, Univ. St. Andrews, UK, salinity from a sea mammal mounted instrument",null,"MOLAR_NITRATE","Nitrate","-","micromole/l","i"]
[null,null,null,null,null,null,null,null,null,null,null,null,null,null,null,"DRUCK   ","      ",null,null,null,null,null,null,null,null,null,null,null,null,null,null,null,null,99,"Unknown",null,"FIT_ERROR_NITRATE","Nitrate fit error","-","dimensionless","i"]
[null,null,null,null,null,null,null,null,null,null,null,null,null,null,null,"DRUCK_2900PSIA   ","      ",null,null,null,null,null,null,null,null,null,null,null,null,null,null,null,null,127,"Missing value",null,"VRS_PH","Voltage difference between reference and source from pH sensor","-","volt","i"]
[null,null,null,null,null,null,null,null,null,null,null,null,null,null,null,"PAINE   ","      ",null,null,null,null,null,null,null,null,null,null,null,null,null,null,null,null,null,null,null,"PH_IN_SITU_FREE","pH","-","dimensionless","i"]
[null,null,null,null,null,null,null,null,null,null,null,null,null,null,null,"PAINE_1500PSIA   ","      ",null,null,null,null,null,null,null,null,null,null,null,null,null,null,null,null,null,null,null,"PH_IN_SITU_SEAWATER","pH","-","dimensionless","i"]
[null,null,null,null,null,null,null,null,null,null,null,null,null,null,null,"PAINE_1600PSIA   ","      ",null,null,null,null,null,null,null,null,null,null,null,null,null,null,null,null,null,null,null,"RAW_DOWNWELLING_IRRADIANCE","Raw downwelling irradiance at x nanometers","-","count","i"]
[null,null,null,null,null,null,null,null,null,null,null,null,null,null,null,"PAINE_2000PSIA   ","      ",null,null,null,null,null,null,null,null,null,null,null,null,null,null,null,null,null,null,null,"RAW_UPWELLING_RADIANCE","Raw upwelling radiance at x nanometers","-","count","i"]
[null,null,null,null,null,null,null,null,null,null,null,null,null,null,null,"PAINE_2900PSIA   ","      ",null,null,null,null,null,null,null,null,null,null,null,null,null,null,null,null,null,null,null,"RAW_DOWNWELLING_PAR","Raw downwelling photosynthetic available radiation","-","count","i"]
[null,null,null,null,null,null,null,null,null,null,null,null,null,null,null,"PAINE_3000PSIA   ","      "]
[null,null,null,null,null,null,null,null,null,null,null,null,null,null,null,"AMETEK   ","      "]
[null,null,null,null,null,null,null,null,null,null,null,null,null,null,null,"KISTLER   ","      "]
[null,null,null,null,null,null,null,null,null,null,null,null,null,null,null,"KISTLER_2900PSIA   ","      "]
[null,null,null,null,null,null,null,null,null,null,null,null,null,null,null,"KISTLER_10153PSIA   ","      "]
[null,null,null,null,null,null,null,null,null,null,null,null,null,null,null,"SBE_STS   ","   SBE Near Surface Conductivity and Temperature Module   "]
[null,null,null,null,null,null,null,null,null,null,null,null,null,null,null,"SUNA   ","   UV absorption to derive nitrate and bisulfide (MBARI)   "]
[null,null,null,null,null,null,null,null,null,null,null,null,null,null,null,"SUNA_V2   ","   UV absorption to derive nitrate and bisulfide (SATLANTIC)   "]
[null,null,null,null,null,null,null,null,null,null,null,null,null,null,null,"ISUS   ","   Nitrate (MBARI)   "]
[null,null,null,null,null,null,null,null,null,null,null,null,null,null,null,"ISUS_V3   ","   Nitrate (SATLANTIC)   "]
[null,null,null,null,null,null,null,null,null,null,null,null,null,null,null,"C_STAR   ","   Transmissometer   "]
[null,null,null,null,null,null,null,null,null,null,null,null,null,null,null,"C_ROVER   ","   Transmissometer (WETLABS)   "]
[null,null,null,null,null,null,null,null,null,null,null,null,null,null,null,"DURA   ","   pH (MBARI)   "]
[null,null,null,null,null,null,null,null,null,null,null,null,null,null,null,"SATLANTIC_OCR500   ","   Multispectral radiometer (SATLANTIC)   "]
[null,null,null,null,null,null,null,null,null,null,null,null,null,null,null,"SATLANTIC_OCR504   ","   Multispectral radiometer (SATLANTIC)   "]
[null,null,null,null,null,null,null,null,null,null,null,null,null,null,null,"SATLANTIC_OCR507   ","   Multispectral radiometer (SATLANTIC)   "]
[null,null,null,null,null,null,null,null,null,null,null,null,null,null,null,"FLBB   ","   Fluorescence and Backscatter   "]
[null,null,null,null,null,null,null,null,null,null,null,null,null,null,null,"FLBB_AP2   ","   Fluorescence and Backscatter   "]
[null,null,null,null,null,null,null,null,null,null,null,null,null,null,null,"FLNTU   ","   Fluorescence and Turbidity   "]
[null,null,null,null,null,null,null,null,null,null,null,null,null,null,null,"ECO_PUCK   ","   Optical sensor (WETLABS)   "]
[null,null,null,null,null,null,null,null,null,null,null,null,null,null,null,"ECO_[FL]_[BB]_[BB2]_[TRIPLET]_[CD]_[NTU]_[VSF]   ","   WETLABS optical sensor packages   "]
[null,null,null,null,null,null,null,null,null,null,null,null,null,null,null,"RAFOS   ","   Receiver mounted on some floats for geopositioning under ice using RAFOS sound sources in the array in the Weddell Sea (Location derivation is done in Delayed Mode for under ice floats equipped with RAFOS receivers).   "]
[null,null,null,null,null,null,null,null,null,null,null,null,null,null,null,"PAL_UW   ","   UW Passive acoustic listener   "]
[null,null,null,null,null,null,null,null,null,null,null,null,null,null,null,"EM   ","   Electromagnetic sensor package to measure velocity   "]

{"sheet":"Deployment file Ids ","index":2,"n_rows":10,"n_cols":3,"rows_kept":10,"cut":false,"hidden":false,"merged":[]}
["Deployment file Id","Include Coriolis decoder versions","Update date: 20150915"]
[1,"4.23, 4.51","PROVOR CTS3.1 Argos"]
[2,"5.9, 5.91, 5.92, 6.01","PROVOR ProvBioII Remocean"]
[3,"4.42, 4.44, 4.45","PROVOR CTS3.1 - DO Argos"]
[4,"5.7, 5.71, 5.72","PROVOR CTS3 - DO Iridium"]
[5,"5.4, 5.41, 5.42","ARVOR Iridium"]
[6,4.5199999999999996,"ARVOR ARN Argos"]
[7,"5.6, 5.61, 5.62","ARVOR Deep"]
[8,4.53,"ARVOR Argos mode ASFAR"]
[101,"all APEX Argos with a CTD only","APEX Argos CTD"]

{"sheet":"NKE version VS decoder versions","index":3,"n_rows":37,"n_cols":3,"rows_kept":37,"cut":false,"hidden":false,"merged":[[29,2,33,2],[34,2,36,2],[1,2,7,2],[8,2,13,2],[14,2,15,2],[16,2,20,2],[21,2,23,2],[24,2,28,2]]}
["NKE firmware version"," Checksum"," Coriolis decoder version"]
[4.8," 936F","4.2, 4.21, 4.22"]
["4.80b"," F4B7"]
[4.8099999999999996,9372]
[4.82," 936A"]
[4.83,5824]
[4.84," 601F"]
[4.8499999999999996," D36B"]
[9," 5BDC","4.4, 4.41"]
[9.01," BD0C"]
[9.02," BE05"]
[9.0299999999999994,5824]
[9.0399999999999991," 375F"]
[9.0500000000000007,4059]
["5601A04",4341,4.5]
["5601A05",4338]
["5605A00"," 78AC",4.51]
["5605A01"," -"]
["5605A02"," -"]
["5605A03"," E944"]
["5605A04",1460]
["5605A05",60,"4.51 (differs from original 4.51 by the PT parameters (PT22 and PT23 became PT23 and PT24, but fortunately, PT22 is not used => same decoder's version)"]
["5605A06","0CAB"]
["5605A07","B261"]
["5816A00"," 005C",4.2300000000000004]
["5816A01"," 846A"]
["5816A02"," 45C5"]
["5816A03"," 645C"]
["5816A04",2951]
["5817A00","0E37",4.43]
["5817A01"," 2F8F"]
["5817A02"," F03B"]
["5817A03"]
["5817A04"," 0E1A"]
["5817A05"," 090A","4.42, 4.44, 4.45"]
["5817A07"," CCAB"]
["5817A08"," A121"]

{"sheet":"Decoder versions information","index":4,"n_rows":60,"n_cols":8,"rows_kept":60,"cut":false,"hidden":false,"merged":[[0,0,0,7],[47,1,47,2],[48,1,48,2],[49,1,49,2],[50,1,50,2],[56,1,56,2],[57,1,57,2],[58,1,58,2],[59,1,59,2],[51,1,51,2],[52,1,52,2],[53,1,53,2],[54,1,54,2],[55,1,55,2]]}
["Update date: 07/04/2015"]
["Line #","Coriolis version","Matlab DecId #","Transmission (A/I)","Family name","Params","Doc (Y/N)","Commentaire"]
[1,"1",6,"A","METOCEAN","PTS","Y"]
[2,"2.2",15,"A","PROVOR T","PT","N"]
[3,"2.6 & 2.7",13,"A","PROVOR T","PT","Y"]
[4,"3.21",16,"A","PROVOR CTF1","PTC","N"]
[5,"3.5",14,"A","PROVOR CTF1-CTF2","PTC","Y","similar to 3.61 for data messages and to 2.6 & 2.7 for technical message"]
[6,"3.61",9,"A","PROVOR CTF2","PTC","Y"]
[7,"3.8",8,"A","PROVOR CTF2-CTF3","PTC","N","similar to 3.81 but with a 28 bits Argos Id (31 bytes available for the float Argos message)"]
[8,"3.81",5,"A","PROVOR CTF2","PTC","Y"]
[9,"4.0","-","A","?","?","N","only 1 float (not documented). Is it a prototype ? => float version not implemented"]
[10,"4.1",2,"A","PROVOR CTS2","PTS","Y"]
[11,"4.11",10,"A","PROVOR CTS2","PTS","N","similar to 4.1 but with a 28 bits Argos Id (31 bytes available for the float Argos message)"]
[12,"4.2",1,"A","PROVOR CTS3","PTS","Y","similar to 4.21 but with a 28 bits Argos Id (31 bytes available for the float Argos message)"]
[13,"4.21",11,"A","PROVOR CTS3","PTS","N"]
[14,"4.22",12,"A","PROVOR CTS3 (cBar)","PTS","N","similar to 4.2 but with a surface PRES offset in cBar (instead of dBar)"]
[15,"4.23",24,"A","PROVOR CTS3.1","PTS","Y","similar to 4.22 but with the Arvor 4.51 software (prelude phase + new subsurface drift meas date implementation)"]
[16,"4.4",4,"A","PROVOR CTS3-DO (MOLAR_DOXY)","PTSO","Y"]
[17,"4.41",19,"A","PROVOR CTS3-DO (cBar) (MOLAR_DOXY)","PTSO","N","similar to 4.4 but with a surface PRES offset in cBar (instead of dBar)"]
[18,"4.42",27,"A","PROVOR CTS3.1-DO (TPHASE_DOXY)","PTSO","Y","similar to 4.43 with TPHASE_DOXY parameter (instead of MOLAR_DOXY) (TPHASE_DOXY -> DOXY using third method: \"Stern-Volmer equation\")"]
[19,"4.43",25,"A","PROVOR CTS3.1-DO (MOLAR_DOXY)","PTSO","N","similar to 4.41 but with the Arvor 4.51 software (prelude phase + new subsurface drift meas date implementation)"]
[20,"4.44",28,"A","PROVOR CTS3.1-DO (TPHASE_DOXY)","PTSO","Y","similar to 4.42 with (TPHASE_DOXY -> DOXY using first method: \"the Aanderaa standard calibration\")"]
[21,"4.45",29,"A","PROVOR CTS3.1-DO (TPHASE_DOXY)","PTSO","Y","similar to 4.42 with (TPHASE_DOXY -> DOXY using second method: \"the Aanderaa standard calibration + 2-point adjustment\")"]
[22,"4.5",3,"A","ARVOR PNG","PTS","N"]
[23,"4.51",17,"A","ARVOR (cBar)","PTS","Y","similar to 4.5 but with a surface PRES offset in cBar (instead of dBar)"]
[24,"4.52",30,"A","ARVOR ARN (NAOS 2013)","PTS","Y","to be implemented"]
[25,"4.6","-","A3","ARVOR A3","?","N","no user manual, only specifications (cf. mantis #7388 et #9372)"]
[26,"4.61","-","A3","ARVOR A3 (bas débit)","?","N","no user manual, only specifications (cf. mantis #12720)"]
[27,"5.0",101,"I","PROVBIO-A","PTS + bio","Y"]
[28,"5.1",102,"I","PROVBIO-B","PTS + bio","Y"]
[29,"5.2",103,"I","PROVCARBON","PTS + bio","Y"]
[30,"5.3","?","I","ARVOR C","?","?","to be implemented"]
[31,"5.4",204,"I","ARVOR I","PTS","N","prototype (2 floats only)"]
[32,"5.41 & 5.42",205,"I","ARVOR I","PTS","Y","commercial version (5.41 and 5.42 only differ with a not used PT parameter => same decoder)"]
[33,"5.5","-","I","PROVNUTS","?","?"]
[34,"5.6",202,"I","ARVOR_DEEP 3500","PTSO","Spec","Arvor-deep3500 prototype (C1/2PHASE_DOXY -> DOXY using first method: \"the Aanderaa standard calibration\")"]
[35,"5.61",201,"I","ARVOR_DEEP 4000","PTSO","Y","Arvor-deep4000 (C1/2PHASE_DOXY -> DOXY using third method: \"Stern-Volmer equation\")"]
[36,"5.7",207,"I","PROVOR CTS3-DO Ir","PTSO","Y","C1/2PHASE_DOXY -> DOXY using first method: \"the Aanderaa standard calibration\""]
[37,"5.71",206,"I","PROVOR CTS3-DO Ir","PTSO","Y","similar to 5.7 with (C1/2PHASE_DOXY -> DOXY using third method: \"Stern-Volmer equation\")"]
[38,"5.72",208,"I","PROVOR CTS3-DO Ir","PTSO","Y","similar to 5.7 with (C1/2PHASE_DOXY -> DOXY using second method: \"the Aanderaa standard calibration + 2-point adjustment\")"]
[39,"5.73","?","I","ARVOR 2DO","PTSO","N","to be implemented"]
[40,"5.8",301,"I","PROVOR BIO II (FLBB)","PTS + bio","Y","in INCOIS DAC only"]
[41,"5.9",105,"I (pseudo Rudics)","PROVOR BIO II (Remocean)","PTS + bio","Y","Remocean A without oxygen"]
[42,"5.91",106,"I (pseudo Rudics)","PROVOR BIO II (Remocean)","PTS + bio","Y","Remocean A with (C1/2PHASE_DOXY -> DOXY using first method: \"the Aanderaa standard calibration\")"]
[43,"5.92",107,"I (pseudo Rudics)","PROVOR BIO II (Remocean)","PTS + bio","Y","Remocean A with (C1/2PHASE_DOXY -> DOXY using third method: \"Stern-Volmer equation\")"]
[44,"6.01",109,"I (pseudo Rudics)","PROVOR BIO II (Remocean)","PTS + bio","Y","Remocean A with (BETA_BACKSCATTERING2 instead of FLUORESCENCE_CDOM) and (C1/2PHASE_DOXY -> DOXY using third method: \"Stern-Volmer equation\")"]
[]
[null,"Same CONFIG",null,null,"Same TECH"]
[null,"1 -> 11, 12, 4, 19",null,null,"1 -> 11, 3"]
[null,"3 alone",null,null,"12 -> 24, 17"]
[null,"24 -> 17",null,null,"4 alone"]
[null,"25 alone",null,null,"19 -> 25, 27, 28, 29"]
[null,"27 -> 28, 29",null,null,"105 -> 106, 107, 109"]
[null,"105 -> 106, 107, 109",null,null,"201 - > 202"]
[null,"201 alone",null,null,"205 - > 204, 206, 207, 208"]
[null,"202 alone",null,null,"301 alone"]
[null,"204 alone"]
[null,"205 alone"]
[null,"206 -> 207, 208"]
[null,"301 alone"]